{"text_format":"1","workbook":"xlsx","n_sheets":4,"sheets":["Admin Workflow","Service Master List","Categories","Minor Ailment Criteria Codes"],"not_rendered":{"charts":0,"images":2,"macros":1,"external_links":0,"defined_names":10,"comments":0,"pivot_tables":0},"unopened":[],"bounds":{"document_bytes":16777216,"sheet_cells":100000,"rows_first":2000,"rows_last":500,"rows_between":2000,"halvings":0,"cell_chars":16384,"cell_head_chars":4096},"cells_cut":0,"cells_raw":0,"read":"whole","date_system":"1900"}

{"sheet":"Admin Workflow","index":0,"n_rows":132,"n_cols":13,"rows_kept":132,"cut":false,"hidden":false,"merged":[]}
[null,null,"        Pharmacy Services - Clinic Admin Workflow"]
[]
[]
[]
[]
[]
[]
[]
[]
[]
[]
["Funding Status","Category","Service","Recipient","SSC code","Time","Screening","Booking Notes","Prepare in Advance","Service Notes","Post-Service Admin","Post-Service Pharmacist","Comments"]
["Funded","Drug Administration","Covid-19 Vaccine Administration","All Patients",null,7.5,"N/A - patient will receive vaccine as part of another service.  Pharmacist may ask to book into Internal Calendar","Booked into CanImmunize Internal Calendar","Standard injection supplies (kit) for COVID.  Check-in through CanImmunize.","Usual process through CanImmunize.","N/A - Billed through MSI"]
["Funded","Drug Administration","Influenza Vaccine Administration","All Patients",null,7.5,"During flu season if someone is booking another appointment, you could ask if they want to get their flu shot when they visit the clinic.  N/A - patient will receive vaccine as part of another service.  Pharmacist may ask to book into Internal Calendar","Booked into CanImmunize Internal Calendar","Standard injection supplies (kit) for influenza.  Check-in through CanImmunize.","Usual process through CanImmunize.","N/A - Billed through MSI"]
["Funded","Drug Administration","Basic Assessment and Injection for all publicly funded VACCINES (except influenza)","All NS Residents",null,15,"What is the patient eligible for?  It may be best to have a phone/virtual consult first to determine eligibility if patient isn't sure."]
["Funded","Drug Administration","Complex VACCINE assessment fee (billed in addtion when complex criteria is met)","All NS Residents","with 002",15,"See specific criteria list to check if this is considered complex in nature"]
["Funded","Drug Administration","Basic assessment and injection of MEDICATIONS (Im or SC)","All NS Residents","with 002",15,"Does the patient already have a prescription?  Is the patient brining the product with them?"]
["Funded","Drug Administration","Complex MEDICATION assessment fee (IM or SC) billed in addtion when the complex medication criteria is met","All NS Residents","with 002",15,"See specific criteria list to check if this is considered complex in nature"]
["Funded","Health Management","Prescribing Contraception Initial Assessment that results in a prescription","All NS Residents","with 002",30,"Patient's sex assigned at birth must be female, and is looking for hormones to prevent contraception (not for other uses)"]
["Funded","Health Management","Prescribing Contraception Initial Assessment that does not result in a prescription","All NS Residents","with 002",30]
["Funded","Health Management","Prescribing Contraception subsequent assessment that results in a change","All NS Residents","with 002",15]
["Funded","Health Management","Prescribing Contraception Subsequent assessment that does not result in a change","All NS Residents","with 002",15]
["Funded","Health Management","Community Pharmacy Led Anticoagulation Management Service (monthly service fee, to be billed if 1 visit/month)","All NS Residents","with 003",15,"Has the patient been part of the CPAMS program already?  Do they have a family provider?"]
["Not Funded Eligible","Health Management","CPAMS: Shadow billing to track subsequent visits within the month","All NS Residents","with 003",15]
["Funded","Health Management","Bloom Monthly fee (first 6 months)","All NS Residents"," with 003",30,"One or more mental health or addiction diagnoses\nAND\nA medication problem that they would like to work on with their pharmacist"]
["Funded","Health Management","Bloom Monthly fee (7+ months)","All NS Residents","with 003",15]
["Not Funded Eligible","Health Management","Bloom: Shadow billing to track subsequent visits within the month","All NS Residents","with 003",15]
["Funded","Medication Review","Basic Medication Review (Usual Pharmacare Copays Apply)","All Pharmacare Patients","with 003",30,"Rare that patient will ever request this service.  Only funded for patients of Pharmacare.  Usual copays apply (30% or $15.75,  20% or $10.50).  See comments for eligibility criteria. $52.50 for all other patients.  Confirm patient okay with copay.  See comments for MSI eligibility.  Remind patient to bring in their medications.","Remind patients to bring in their medication.","If patient must pay copay, check receipt on check-in.","Follow standard form process.  Ensure pharmacist signs patient copy of the medication list.  Obtain a patient signature on pharmacy copy of the list. Print 2 copies of the list.","Bill MSI, Scan documentation, Fax notification if necessary.",null,"Print two copies of the list.  One for the patient (phc signs), one for the pharmacy (patient signs).  Eligibility:  3 or more prescription medications that are for chronic conditions and are covered by Pharmacare.  Patient is covered by Pharmacare (except Long Term Care program).  Patient does not live in a nursing home or a home for special care."]
["Funded","Medication Review","Basic Medication Review Follow-ups","All Pharmacare Patients","with 003",15,"N/A - Pharmacist must initiate follow-up at the appropriate time.  Phc may instruct Clinic Admin to book an appointment when appropriate."]
["Funded","Medication Review","Advanced Medication Review (Usual Pharmacare Copays Apply)","All Seniors Pharmacare Patients","with 006",60,"Only funded for patients of Seniors Pharmacare.  Usual copays apply (30% or $45, $0 if annual deductible met).  $150 for all other patients.  See comments for MSI eligibility.","Remind patients to bring in their medication.","If patient must pay copay, check receipt on check-in.  Phc to access relevant labs, prepare service forms.","Follow standard form process.  Ensure pharmacist signs patient copy of the medication list.  Obtain a patient signature on pharmacy copy of the list. Print 2 copies of the list.","Bill MSI, Scan documentation, Fax notification if necessary.",null,"Print labs from SHARE and scan.  Do not transcribe values.  Print two copies of the list.  One for the patient (phc signs), one for the pharmacy (patient signs)."]
["Funded","Medication Review","Advanced Medication Review Follow-ups","All Seniors Pharmacare Patients","with 003",15,"N/A - Pharmacist must initiate follow-up at the appropriate time.  Phc may instruct Clinic Admin to book an appointment when appropriate.","Indicate Service","Print/Access initial service to determine reason for follow-up (i.e. if medication therapy problem)."]
["Funded","Medication Review","Complex Medication Review (only covered at CPPCC sites for eligible patients, no copay)","All NS Residents","with 002",60,"Patient has been referred for a medication assessment by a physician, nurse practitioner or NSH primary care site manager. Referral may also be by another pharmacist but only for unattached patients and if the needs of the patient are outside the expected scope of the referring pharmacist.\nOR -Patient is currently an unattached with four or more medications and at least one diagnosed chronic condition, with a significant\nunaddressed healthcare need that could benefit from a comprehensive medication review. OR -Patient is currently an unattached patient with complex medical issues and medications, history of lack of consistent monitoring or follow up\nregarding medication management, and could benefit from a comprehensive medication review to identify any drug related problems.","Remind patients to bring in their medication."]
["Funded","Medication Review","Complex Medication Review Follow ups","All NS Residents","with 002",15,"N/A, pharmacist will initiate follow up"]
["Funded","Other","Take Home Naloxone Kit Training","All NS Residents","with 003",15,"Eligible for all NS Residents who may encounter situations where they may encounter someone at risk of overdose.  Rare that patient would  book this service but it may be referred by the dispensary.","None","Take Home Naloxone Kit.  Patient information sheet.","Usual consultation","Bill to MSI on Dummy Patient file for Take Home Naloxone.","N/A","N/A"]
["Funded","Prescribing","PPCC Prescription Renewal (1-3 meds)","All NS Residents","with 002",15,"Determine which medications need to be renewed.","Indicate in booking which medications need to be renewed.","Pharmacist to download relevant SHARE data.  Download Renewal Templates if in use.","Efficacy (S/O), Tolerability (S/O), Labs, Red Flags, Review Medical Background, Develop Plan, Issue Prescription (if applicable)","Bill service to MSI, Fax Rx to patient pharmacy if applicanble) Notification if applicable, Scan documentation (if applicable)",null,"Print and scan relevant labs.  Do not type out."]
["Funded","Prescribing","Prescription Renewal (4+ meds)","All NS Residents","with 002",30,"Determine which medications need to be renewed.","Indicate in booking which medications need to be renewed.","Pharmacist to download relevant SHARE data.  Download Renewal Templates if in use.","Efficacy (S/O), Tolerability (S/O), Labs, Red Flags, Review Medical Background, Develop Plan, Issue Prescription (if applicable)","Bill service to MSI, Fax Rx to patient pharmacy if applicanble) Notification if applicable, Scan documentation (if applicable)",null,"Print and scan relevant labs.  Do not type out."]
["Funded","Prescribing","Prescription Adaptation Refusal to Fill #1          Prescription Adaptation Refusal to Fill #2             Prescription Adaptation Refusal to Fill #3","All NS Residents","with 002",15,"N/A","N/A","N/A","N/A - Usually completed with dispensing.  Document assessment details why prescription would be refused and plan.","Bill service to MSI, Notification if applicable, Scan documentation (if applicable)"]
["Funded","Prescribing","Prescription Adaptation -changing for a clinical reason #1  Prescription Adaptation- changing for a clinical reason #2   Prescription Adaptation- changing for a clinical reason #3","All NS Residents","with 002",15,"N/A","N/A","N/A","Usually completed within the context of another assessment or when filling a prescription.  Billing may be required for tracking purposes.","Bill service to MSI (note if another service is the primary service this may be billed with $0 fee), Fax Rx to patient pharmacy if applicanble) Notification if applicable, Scan documentation (if applicable)"]
["Funded","Prescribing","Therapeutic Substitution – #1                              Therapeutic Substitution - #2                                 Therapeutic Substitution - #3","All NS Residents","with 002",15,"N/A","N/A","N/A","Usually completed within the context of another assessment or when filling a prescription.  Billing may be required for tracking purposes.","Bill service to MSI (note if another service is the primary service this may be billed with $0 fee), Fax Rx to patient pharmacy if applicanble) Notification if applicable, Scan documentation (if applicable)"]
["Funded","Prescribing","Assessment – Uncomplicated UTI that results in a prescription","All NS Residents","with 002",15,"Patient > 16 years old, sex assigned at birth: female, previously diagnosied with a urinary tract infection.","N/A","Prepare protocol form.","Follow protocol.","Bill service to MSI, Fax Rx to patient pharmacy if applicanble) Notification if applicable, Scan documentation (if applicable)",null,"Print and scan relevant labs.  Do not type out."]
["Funded","Prescribing","Assessment of Uncomplicated UTI that result in a prescription","All NS Residents","with 002",15,"Patient > 16 years old, sex assigned at birth: female, previously diagnosied with a urinary"]
["Funded","Prescribing","Assessment Uncomplicated UTI that does not result in a prescription","All NS Residents","with 002",15,"Patient > 16 years old, sex assigned at birth: female, previously diagnosied with a urinary tract infection.","N/A","Prepare protocol form.","Follow protocol.","Bill service to MSI, Fax Rx to patient pharmacy if applicanble) Notification if applicable, Scan documentation (if applicable)",null,"Print and scan relevant labs.  Do not type out."]
["Funded","Prescribing","Prescribing- Lyme treatment (early Lyme)","All NS Residents","with 002",15,"Expanding Rash (may or may not be bullseye)"]
["Funded","Prescribing","Prescribing- Lyme Chemoprophylaxis","All NS Residents","with 002",15,"Does the patient have symptoms of Lyme Disease? (Yes - Refer), Does the patient have the tick or are they able to distinguish between deer ticks and dog ticks? Was the tick removed within 72 hours?","N/A","Prepare protocol form.  Print out Health Canada brochure (see comments for link)","Follow protocol.","Bill service to MSI, Fax Rx to patient pharmacy if applicanble) Notification if applicable, Scan documentation (if applicable)",null,"Lyme-Disease-Spring-Brochure-3Fold-EN-WEB.PDF (canada.ca)"]
["Funded","Prescribing","Assessment Lyme Chemoprophylaxis or treatment that does not result in a prescription","All NS Residents","with 002",15,"Does the patient have symptoms of Lyme Disease? (Yes - Refer), Does the patient have the tick or are they able to distinguish between deer ticks and dog ticks? Was the tick removed within 72 hours?","N/A","Prepare protocol form.  Print out Health Canada brochure (see comments for link)","Follow protocol.","Bill service to MSI, Notification if applicable, Scan documentation (if applicable)",null,"Lyme-Disease-Spring-Brochure-3Fold-EN-WEB.PDF (canada.ca)"]
["Funded","Prescribing","Prescribing Herpes Zoster that results in a prescription","All NS Residents","with 002",15,"No screening.  Book if the patient indicates they have a rash which may be shingles.","N/A","Prepare protocol form","Follow protocol.","Bill service to MSI, Fax Rx to patient pharmacy if applicanble) Notification if applicable, Scan documentation (if applicable)",null,"Print and scan relevant labs.  Do not type out."]
["Funded","Prescribing","Assessment Herpes Zoster that does not result in a prescription","All NS Residents","with 002",15,"No screening.  Book if the patient indicates they have a rash which may be shingles.","N/A","Prepare protocol form","Follow protocol.","Bill service to MSI, Fax Rx to patient pharmacy if applicanble) Notification if applicable, Scan documentation (if applicable)",null,"Print and scan relevant labs.  Do not type out."]
["Funded","Prescribing","Prescribing Budesonide for Covid-19","All NS Residents","with 002",15,"Patient has a positive test for COVID within the past 14 days.","Due to concerns regarding the spread of COVID, consider whether a virtual consultation is possible.","If in person, ensure masking, hand-sanitizer, isolate in 2nd clinic room if possible.","Follow protocol.","Bill service to MSI, Fax Rx to patient pharmacy if applicanble) Notification if applicable, Scan documentation (if applicable)"]
["Funded","Health Management","Deprescribing PPI s Initial Assessment","All NS Residents","with 003",30,"Patient on a PPI and would like to discontinue the product"]
["Funded","Health Management","Deprescribing PPIs Follow up Assessment (limit 2)","All NS Residents","with 003",15]
["Funded","Health Management","Deprescribing BZRA  Initial Assessment","All NS Residents","with 003",60,"Patient on a Benzo and would like to taper their dose to discontinue to product"]
["Funded","Health Management","Deprescribing BZRA Follow-ups (limit 7)","All NS Residents","with 003",15]
["Not Funded Eligible","Health Management","Service in scope but no currently funded (previously names Complex Therapy Assessment) Time and care required does not meet criteria for any service.  ","All NS Residents","with 002",10,"Qty 1 for 10 minutes spent = $25.  Increase qty to a maximum of 6 for each 10 minutes spent on patient care"]
["Not Funded Eligible","Prescribing","Prescribing with a diagnosis as per NSCP standard in collaboration with another provider","All NS Residents","with 002",15,"Will not be booked by a patient"]
["Funded","Health Management","Chronic Disease Management – Diabetes – Initial/Annual assessment","All NS Residents w/ Diabetes","with 003",45,"Patient has this chronic disease state and there is a need (medication, life style, condition based) that has not been met "]
["Funded","Health Management","Chronic Disease Diabetes Management - Follow-up ","All NS Residents w/ Diabetes","with 003",15]
["Funded","Health Management","Chronic Disease Management – Lung Disease (Asthma/COPD) Initial/Annual Assessment","All NS Residents w/ Asthma/COPD","with 003",45,"Patient has this chronic disease state and there is a need (medication, life style, condition based) that has not been met "]
["Funded","Health Management","Chronic Disease Management – Lung Disease Follow-up ","All NS Residents w/ Asthma/COPD","with 003",15]
["Funded","Health Management","Chronic Disease Management -Cardiovascular Disease Initial/Annual Assessment","All NS Residents w/ CVD","with 003",45,"Patient has this chronic disease state and there is a need (medication, life style, condition based) that has not been met "]
["Funded","Health Management","Chronic Disease Management Cardiovascular Disease Follow-up ","All NS Residents w/ CVD","with 003",15]
["Funded","Health Management","Chronic Disease Management - ADHD Initial assessment","All NS Residents","with 002",60,"Patient has this chronic disease state and there is a need (medication, life style, condition based) that has not been met "]
["Funded","Health Management","Chronic Disease Management - ADHD Follow up","All NS Residents","with 002",15]
["Funded","Health Management","Chronic Disease Management - Non cancer chronic pain Initial Assessment","All NS Residents","with 002",60,"Patient has this chronic disease state and there is a need (medication, life style, condition based) that has not been met "]
["Funded","Health Management","Chronic Disease Management - Non cancer chronic pain Follow up","All NS Residents","with 002",15]
["Funded","Health Management","Chronic Disease Mangement- Obesity Initial Assessment","All NS Residents","with 002",60,"Patient has this chronic disease state and there is a need (medication, life style, condition based) that has not been met "]
["Funded","Health Management","Chronic Disease Management - Obesity Follow up","All NS Residents","with 002",15]
["Funded","Health Management","Chronic Disease Management - Other Initial assessment","All NS Residents","with 002",45,"Patient has this chronic disease state and there is a need (medication, life style, condition based) that has not been met "]
["Funded","Health Management","Chronic Disease Management - Other follow up","All NS Residents","with 002",15]
["Funded","Health Management","Tobacco Use Reduction Program – Initial Assessment and Discussion","All NS Residents","with 003",60,"Patient would like to reduce/stop nicotine product and would like to have counselling, meet with pharmacist to discuss goals and ways to achieve them. May or may not include a prescription"]
["Funded","Health Management","Tobacco Use Reduction (product only)","All NS Residents","with 002",15,"Minor ailment assessment, prescribing a nicotine reduction product"]
["Funded","Health Management","Tobacco Use Reduction Program –Follow-up 1-7","All NS Residents","with 003",15]
["Not Funded Eligible","Prescribing","Renewal Assessment that does not result in a prescription","All NS Residents","with 002",15,"Determine which medications need to be renewed.  Note in this situation after the consultation the pharmacist will have made a decision not to prescribe.  This is normally not covered by MSI.  This assessment will be billed using this PIN.","Indicate in booking which medications need to be renewed.","Pharmacist to download relevant SHARE data.  Download Renewal Templates if in use.","Efficacy (S/O), Tolerability (S/O), Labs, Red Flags, Review Medical Background, Develop Plan, Issue Prescription (if applicable)","Bill service to MSI, Notification if applicable, Scan documentation (if applicable)",null,"Print and scan relevant labs.  Do not type out."]
["Not Funded Eligible","Prescribing","Prescription Adaptation Refusal to Fill","All Non-Pharmacare Patients","with 001",15,"N/A","N/A","N/A","N/A - Usually completed with dispensing.  Document assessment details why prescription would be refused and plan.","Bill service to MSI, Notification if applicable, Scan documentation (if applicable)"]
["Not Funded Eligible","Prescribing","Prescription Adaptation -Other","All non-Pharmacare Patients","E",15,"N/A","N/A","N/A","Usually completed within the context of another assessment or when filling a prescription.  Billing may be required for tracking purposes.","Bill service to MSI (note if another service is the primary service this may be billed with $0 fee), Fax Rx to patient pharmacy if applicanble) Notification if applicable, Scan documentation (if applicable)"]
["Not Funded Eligible","Prescribing","Therapeutic Substitution – PPI","All non-Pharmacare Patients","with 002",15,"N/A","N/A","N/A","Usually completed within the context of another assessment or when filling a prescription.  Billing may be required for tracking purposes.","Bill service to MSI (note if another service is the primary service this may be billed with $0 fee), Fax Rx to patient pharmacy if applicanble) Notification if applicable, Scan documentation (if applicable)",0,0]
["Not Funded Eligible","Prescribing","Therapeutic Sub- Other Circumstances","All NS Residents Requiring T/S Other than PPI","with 002",15,"May be provided for patients with refills of a drug that is short from the manufacturer.  Usually done as part of another service (renewal assessment) or filling a prescription with allergy, interaction, coverage or supply problem.","Indicate medication to be substituted and why. (e.g. candesartan (short from manufacturer), Dispensary referral (drug allergy/interaction))","N/A","Usually completed within the context of another assessment or when filling a prescription.  Billing may be required for tracking purposes.","Bill service to MSI (note if another service is the primary service this may be billed with $0 fee), Fax Rx to patient pharmacy if applicanble) Notification if applicable, Scan documentation (if applicable)"]
["Funded","Prescribing","Prescribing in an Emergency","All NS Residents","with 002",15,"Reserved for emergency situations where a patient has an immediate health risk and the situation is not a renewal of existing medication (e.g. anaphylaxis, requiring an Epi-Pen).  Some may include Nitrospray for angina or salbutamol for an asthma attack but renewal presrcribing would normally apply.","Do not book.  Get the pharmacist to look at an urgent health crisis.  Normally this would be done at the dispensary because medication would need to be administered right away.  Confirm with the pharmacist if we should call 911.","N/A","Quickly assess patient health status.  Document after treatment is administered.","Bill service, Scan documentation, Fax notification"]
["Funded","Prescribing","Pharmacist independent prescribing with diagnosis confirmed by pharmacist (except mental health). NSCP Study","All NS Residents","with 002",15,"Will not be booked by a patient"]
["Not Funded Eligible","Prescribing","Prescribing for a Minor Ailment: Other conditions: Dandruff, Corns and calluses, warts (excluding genital or facial), cough, nasal congestion","All NS Residents","with 002",15,"Confirm condition is one of the minor ailments.","Indicate which condition will be assessed.","Prepare/Print assessment forms.","Usual assessment of minor ailment (use form), OLD CARTS (onset, location, duration, characteristic, allev/aggrav (including previous tx), radiating/relieving, timing, severity), Review medical background,","Bill service to MSI, Fax Rx to patient pharmacy if applicanble) Notification if applicable, Scan documentation (if applicable)"]
["Funded","Prescribing","Prescribing for a Minor Ailment: Conjunctivitis Assessment","All NS Residents","with 002",15,"Confirm condition is one of the minor ailments.","Indicate which condition will be assessed.","Prepare/Print assessment forms.","Usual assessment of minor ailment (use form), OLD CARTS (onset, location, duration, characteristic, allev/aggrav (including previous tx), radiating/relieving, timing, severity), Review medical background,","Bill service to MSI, Fax Rx to patient pharmacy if applicanble) Notification if applicable, Scan documentation (if applicable)"]
["Funded","Prescribing","Prescribing for a Minor Ailment: Contact Allergic Dermatitis Assessment ","All NS Residents","with 002",15,"Confirm condition is one of the minor ailments.","Indicate which condition will be assessed.","Prepare/Print assessment forms.","Usual assessment of minor ailment (use form), OLD CARTS (onset, location, duration, characteristic, allev/aggrav (including previous tx), radiating/relieving, timing, severity), Review medical background,","Bill service to MSI, Fax Rx to patient pharmacy if applicanble) Notification if applicable, Scan documentation (if applicable)"]
["Funded","Prescribing","Prescribing for a Minor Ailment: Mild Acne Assessment","All NS Residents","with 002",15,"Confirm condition is one of the minor ailments.","Indicate which condition will be assessed.","Prepare/Print assessment forms.","Usual assessment of minor ailment (use form), OLD CARTS (onset, location, duration, characteristic, allev/aggrav (including previous tx), radiating/relieving, timing, severity), Review medical background,","Bill service to MSI, Fax Rx to patient pharmacy if applicanble) Notification if applicable, Scan documentation (if applicable)"]
["Funded","Prescribing","Prescribing for a Minor Ailment: Mild to Moderate Eczema Assessment","All NS Residents","with 002",15,"Confirm condition is one of the minor ailments.","Indicate which condition will be assessed.","Prepare/Print assessment forms.","Usual assessment of minor ailment (use form), OLD CARTS (onset, location, duration, characteristic, allev/aggrav (including previous tx), radiating/relieving, timing, severity), Review medical background,","Bill service to MSI, Fax Rx to patient pharmacy if applicanble) Notification if applicable, Scan documentation (if applicable)"]
["Funded","Prescribing","Prescribing for a Minor Ailment: Urticaria Assessment","All NS Residents","with 002",15,"Confirm condition is one of the minor ailments.","Indicate which condition will be assessed.","Prepare/Print assessment forms.","Usual assessment of minor ailment (use form), OLD CARTS (onset, location, duration, characteristic, allev/aggrav (including previous tx), radiating/relieving, timing, severity), Review medical background,","Bill service to MSI, Fax Rx to patient pharmacy if applicanble) Notification if applicable, Scan documentation (if applicable)"]
["Funded","Prescribing","Prescribing for a Minor Ailment: Dyspepsia Assessment","All NS Residents","with 002",15,"Confirm condition is one of the minor ailments.","Indicate which condition will be assessed.","Prepare/Print assessment forms.","Usual assessment of minor ailment (use form), OLD CARTS (onset, location, duration, characteristic, allev/aggrav (including previous tx), radiating/relieving, timing, severity), Review medical background,","Bill service to MSI, Fax Rx to patient pharmacy if applicanble) Notification if applicable, Scan documentation (if applicable)"]
["Funded","Prescribing","Prescribing for a Minor Ailment: GERD Assessment","All NS Residents","with 002",15,"Confirm condition is one of the minor ailments.","Indicate which condition will be assessed.","Prepare/Print assessment forms.","Usual assessment of minor ailment (use form), OLD CARTS (onset, location, duration, characteristic, allev/aggrav (including previous tx), radiating/relieving, timing, severity), Review medical background,","Bill service to MSI, Fax Rx to patient pharmacy if applicanble) Notification if applicable, Scan documentation (if applicable)"]
["Funded","Prescribing","Prescribing for a Minor Ailment: Nausea","All NS Residents","with 002",15,"Confirm condition is one of the minor ailments.","Indicate which condition will be assessed.","Prepare/Print assessment forms.","Usual assessment of minor ailment (use form), OLD CARTS (onset, location, duration, characteristic, allev/aggrav (including previous tx), radiating/relieving, timing, severity), Review medical background,","Bill service to MSI, Fax Rx to patient pharmacy if applicanble) Notification if applicable, Scan documentation (if applicable)"]
["Funded","Prescribing","Prescribing for a Minor Ailment: Hemorrhoids","All NS Residents","with 002",15,"Confirm condition is one of the minor ailments.","Indicate which condition will be assessed.","Prepare/Print assessment forms.","Usual assessment of minor ailment (use form), OLD CARTS (onset, location, duration, characteristic, allev/aggrav (including previous tx), radiating/relieving, timing, severity), Review medical background,","Bill service to MSI, Fax Rx to patient pharmacy if applicanble) Notification if applicable, Scan documentation (if applicable)"]
["Funded","Prescribing","Prescribing for a Minor Ailment: Allergic Rhinitis Assessment","All NS Residents","with 002",15,"Confirm condition is one of the minor ailments.","Indicate which condition will be assessed.","Prepare/Print assessment forms.","Usual assessment of minor ailment (use form), OLD CARTS (onset, location, duration, characteristic, allev/aggrav (including previous tx), radiating/relieving, timing, severity), Review medical background,","Bill service to MSI, Fax Rx to patient pharmacy if applicanble) Notification if applicable, Scan documentation (if applicable)"]
["Funded","Prescribing","Prescribing for a Minor Ailment: Mild Headache Assessment","All NS Residents","with 002",15,"Confirm condition is one of the minor ailments.","Indicate which condition will be assessed.","Prepare/Print assessment forms.","Usual assessment of minor ailment (use form), OLD CARTS (onset, location, duration, characteristic, allev/aggrav (including previous tx), radiating/relieving, timing, severity), Review medical background,","Bill service to MSI, Fax Rx to patient pharmacy if applicanble) Notification if applicable, Scan documentation (if applicable)"]
["Funded","Prescribing","Prescribing for a Minor Ailment: Minor Joint Pain Assessment","All NS Residents","with 002",15,"Confirm condition is one of the minor ailments.","Indicate which condition will be assessed.","Prepare/Print assessment forms.","Usual assessment of minor ailment (use form), OLD CARTS (onset, location, duration, characteristic, allev/aggrav (including previous tx), radiating/relieving, timing, severity), Review medical background,","Bill service to MSI, Fax Rx to patient pharmacy if applicanble) Notification if applicable, Scan documentation (if applicable)"]
["Funded","Prescribing","Prescribing for a Minor Ailment: Minor Muscle Pain Assessment","All NS Residents","with 002",15,"Confirm condition is one of the minor ailments.","Indicate which condition will be assessed.","Prepare/Print assessment forms.","Usual assessment of minor ailment (use form), OLD CARTS (onset, location, duration, characteristic, allev/aggrav (including previous tx), radiating/relieving, timing, severity), Review medical background,","Bill service to MSI, Fax Rx to patient pharmacy if applicanble) Notification if applicable, Scan documentation (if applicable)"]
["Funded","Prescribing","Prescribing for a Minor Ailment: Minor Sleep Disorders Assessment","All NS Residents","with 002",15,"Confirm condition is one of the minor ailments.","Indicate which condition will be assessed.","Prepare/Print assessment forms.","Usual assessment of minor ailment (use form), OLD CARTS (onset, location, duration, characteristic, allev/aggrav (including previous tx), radiating/relieving, timing, severity), Review medical background,","Bill service to MSI, Fax Rx to patient pharmacy if applicanble) Notification if applicable, Scan documentation (if applicable)"]
["Funded","Prescribing","Prescribing for a Minor Ailment: Dysmenorrhea Assessment","All NS Residents","with 002",15,"Confirm condition is one of the minor ailments.","Indicate which condition will be assessed.","Prepare/Print assessment forms.","Usual assessment of minor ailment (use form), OLD CARTS (onset, location, duration, characteristic, allev/aggrav (including previous tx), radiating/relieving, timing, severity), Review medical background,","Bill service to MSI, Fax Rx to patient pharmacy if applicanble) Notification if applicable, Scan documentation (if applicable)"]
["Funded","Prescribing","Prescribing for a Minor Ailment: Emergency Contraception Assessment","All NS Residents","with 002",15,"Confirm condition is one of the minor ailments.","Indicate which condition will be assessed.","Prepare/Print assessment forms.","Usual assessment of minor ailment (use form), OLD CARTS (onset, location, duration, characteristic, allev/aggrav (including previous tx), radiating/relieving, timing, severity), Review medical background,","Bill service to MSI, Fax Rx to patient pharmacy if applicanble) Notification if applicable, Scan documentation (if applicable)"]
["Funded","Prescribing","Prescribing for a Minor Ailment: Dry Eyes Assessment","All NS Residents","with 002",15,"Confirm condition is one of the minor ailments.","Indicate which condition will be assessed.","Prepare/Print assessment forms.","Usual assessment of minor ailment (use form), OLD CARTS (onset, location, duration, characteristic, allev/aggrav (including previous tx), radiating/relieving, timing, severity), Review medical background,","Bill service to MSI, Fax Rx to patient pharmacy if applicanble) Notification if applicable, Scan documentation (if applicable)"]
["Funded","Prescribing","Prescribing for a Minor Ailment: Oral Ulcers Assessment","All NS Residents","with 002",15,"Confirm condition is one of the minor ailments.","Indicate which condition will be assessed.","Prepare/Print assessment forms.","Usual assessment of minor ailment (use form), OLD CARTS (onset, location, duration, characteristic, allev/aggrav (including previous tx), radiating/relieving, timing, severity), Review medical background,","Bill service to MSI, Fax Rx to patient pharmacy if applicanble) Notification if applicable, Scan documentation (if applicable)"]
["Funded","Prescribing","Prescribing for a Minor Ailment: Oral Fungal Infection Assessment","All NS Residents","with 002",15,"Confirm condition is one of the minor ailments.","Indicate which condition will be assessed.","Prepare/Print assessment forms.","Usual assessment of minor ailment (use form), OLD CARTS (onset, location, duration, characteristic, allev/aggrav (including previous tx), radiating/relieving, timing, severity), Review medical background,","Bill service to MSI, Fax Rx to patient pharmacy if applicanble) Notification if applicable, Scan documentation (if applicable)"]
["Funded","Prescribing","Prescribing for a Minor Ailment: Fungal Skin Infection Assessment","All NS Residents","with 002",15,"Confirm condition is one of the minor ailments.","Indicate which condition will be assessed.","Prepare/Print assessment forms.","Usual assessment of minor ailment (use form), OLD CARTS (onset, location, duration, characteristic, allev/aggrav (including previous tx), radiating/relieving, timing, severity), Review medical background,","Bill service to MSI, Fax Rx to patient pharmacy if applicanble) Notification if applicable, Scan documentation (if applicable)"]
["Funded","Prescribing","Prescribing for a Minor Ailment: Vaginal Candidiasis Assessment","All NS Residents","with 002",15,"Confirm condition is one of the minor ailments.","Indicate which condition will be assessed.","Prepare/Print assessment forms.","Usual assessment of minor ailment (use form), OLD CARTS (onset, location, duration, characteristic, allev/aggrav (including previous tx), radiating/relieving, timing, severity), Review medical background,","Bill service to MSI, Fax Rx to patient pharmacy if applicanble) Notification if applicable, Scan documentation (if applicable)"]
["Funded","Prescribing","Prescribing for a Minor Ailment: Threadworms/Pinworms Assessment","All NS Residents","with 002",15,"Confirm condition is one of the minor ailments.","Indicate which condition will be assessed.","Prepare/Print assessment forms.","Usual assessment of minor ailment (use form), OLD CARTS (onset, location, duration, characteristic, allev/aggrav (including previous tx), radiating/relieving, timing, severity), Review medical background,","Bill service to MSI, Fax Rx to patient pharmacy if applicanble) Notification if applicable, Scan documentation (if applicable)"]
["Funded","Prescribing","Prescribing for a Minor Ailment: Cold Sores Assessment","All NS Residents","with 002",15,"Confirm condition is one of the minor ailments.","Indicate which condition will be assessed.","Prepare/Print assessment forms.","Usual assessment of minor ailment (use form), OLD CARTS (onset, location, duration, characteristic, allev/aggrav (including previous tx), radiating/relieving, timing, severity), Review medical background,","Bill service to MSI, Fax Rx to patient pharmacy if applicanble) Notification if applicable, Scan documentation (if applicable)"]
["Funded","Prescribing","Prescribing for a Minor Ailment: Impetigo Assessment","All NS Residents","with 002",15,"Confirm condition is one of the minor ailments.","Indicate which condition will be assessed.","Prepare/Print assessment forms.","Usual assessment of minor ailment (use form), OLD CARTS (onset, location, duration, characteristic, allev/aggrav (including previous tx), radiating/relieving, timing, severity), Review medical background,","Bill service to MSI, Fax Rx to patient pharmacy if applicanble) Notification if applicable, Scan documentation (if applicable)"]
["Funded","Prescribing","Prescribing for a Minor Ailment: Non-infectious Diarrhea Assessment","All NS Residents","with 002",15,"Confirm condition is one of the minor ailments.","Indicate which condition will be assessed.","Prepare/Print assessment forms.","Usual assessment of minor ailment (use form), OLD CARTS (onset, location, duration, characteristic, allev/aggrav (including previous tx), radiating/relieving, timing, severity), Review medical background,","Bill service to MSI, Fax Rx to patient pharmacy if applicanble) Notification if applicable, Scan documentation (if applicable)"]
["Funded","Prescribing","Assessment, Point of Care Testing For Group A Strep that results in a prescription (POCT was completed)","All NS Residents","with 002",15,"age 3+, sore throat assessment includes a review of patient symptoms and physical exam of throat/tonsils, and palpating the lymphnodes.  POCT was deemed appropriate and conducted",null,"Prepare/Print assessment forms.",null,"Bill service to MSI, Fax Rx to patient pharmacy if applicanble) Notification if applicable, Scan documentation (if applicable)"]
["Funded","Prescribing","Assessment Group A Strep that does not result in a test or a prescription (POCT was completed but was negative)","All NS Residents","with 002",15,"age 3+, sore throat assessment includes a review of patient symptoms and physical exam of throat/tonsils, and palpating the lymphnodes.  POCT was deemed appropriate and conducted",null,"Prepare/Print assessment forms.",null,"Bill service to MSI, Fax Rx to patient pharmacy if applicanble) Notification if applicable, Scan documentation (if applicable)"]
["Funded","Prescribing","Assessment of Group A Strep that did no result in a test nor a prescription","All NS Residents","with 002",15,"age 3+, sore throat assessment includes a review of patient symptoms and physical exam of throat/tonsils, and palpating the lymphnodes. POCT was not deemed appropriate"]
["Funded","Testing","Point of Care Test- strep throat cartridge (cost of the cartridge used for testing)","All NS Residents",null,15]
["Funded","Testing","Point of Care Test A1C","All Residents as part of CDM Plan (not walk-in)","with 003",15,"Not available for public access.  Patient must be part of a chronic disease management program and the test must be recommended by the pharmacist.  Most often will be billed in conjunction with another consultation service (e.g. Renewal, Disease Management)","Confirm with pharmacist if the booking for consultation service should be extended for testing (e.g. Extra block on Renewal or Disease Management)","Test supplies.","Usual process as per manufacture guidelines.","Bill the service to MSI along with consultation service if applicable.  Scan documentation.  Fax notification if necessary."]
["Funded","Testing","Point of Care Test Cholesterol","All Residents as part of CDM Plan (not walk-in)","with 003",15,"Not available for public access.  Patient must be part of a chronic disease management program and the test must be recommended by the pharmacist.  Most often will be billed in conjunction with another consultation service (e.g. Renewal, Disease Management)","Confirm with pharmacist if the booking for consultation service should be extended for testing (e.g. Extra block on Renewal or Disease Management)","Test supplies.","Usual process as per manufacture guidelines.","Bill the service to MSI along with consultation service if applicable.  Scan documentation.  Fax notification if necessary."]
["Funded","Prescribing","ENT- assessment, primary complaint ear - prescription provided for otitis media","All NS Residents","with 002",15,"age 3+, ear assessment including a review of patient symptoms, and ear exam "]
["Funded","Prescribing","ENT assessment, primary complaint ear - prescription provided for otitis externa","All NS Residents","with 002",15,"age 3+, ear assessment including a review of patient symptoms, and ear exam "]
["Funded","Prescribing","ENT assessment, primary complaint ear - no prescription provided","All NS Residents","with 002",15,"age 3+, ear assessment including a review of patient symptoms, and ear exam "]
["Funded","Prescribing","ENT assessment, primary compliant sinusitis - prescription provided","All NS Residents","with 002",15,"age 3+, assessment includes a review of patients sinus symptoms"]
["Funded","Prescribing","ENT assessment, primary compliant sinusitis - No prescription provided","All NS Residents","with 002",15,"age 3+, assessment includes a review of patients sinus symptoms"]
["Funded","Prescribing","Prescribing antibiotic prophylaxis to prevent Invasive Group A Strep (IGAS)","All Patients","with 002",15,"Referred from Public Health"]
["Funded","Prescribing","Prescribing antibiotic prophylaxis to prevent Invasive Meningococcal Disease (IMD) infection","All Patients","with 002",15,"Referred from Public Health"]
["Funded","Prescribing","Prescribing antibiotic prophylaxis to prevent Pertussis","All Patients","with 002",15,"Referred from Public Health"]
["Not Funded Eligible","Prescribing","CPPCC Hypertension Diagnosis and Prescribing Appointment","All NS Residents","with 002",30]
["Not Funded Eligible","Prescribing","CPPCC Hypertension Diagnosis Appointment","All NS Residents","with 002",15]
["Not Funded Eligible","Prescribing","CPPCC Diabetes Diagnosis and Prescribing Appointment","All NS Residents","with 002",30]
["Not Funded Eligible","Prescribing","CPPCC Diabetes Diagnosis Appointment","All NS Residents","with 002",15]
["Not Funded Not Eligible","Drug Administration","Administration of non-publicly funded vaccines (e.g. Twinrix®)","All patients","with 002",7.5,"Determine if the vaccine requires a prescription and if the patient has filled a prescription or needs to book an appointment (virtual preferred) with the pharmacist to prescribe the vaccine?  Remind the patient that they must present the receipt from the pharmacy as proof of payment for vaccine administration when checking in.","Indicate which vaccine is being administered and if the vaccine is in the clinic fridge or of the patient is bringing it with them.","Standard injection supplies (kit).  Print off vaccine administration form and have the patient fill it out when they arrive (clipboard/pen on hand).","Standard injection process.  If a subsequent doses are necessary invite patient to book an appointment before they leave.","Service already paid by patient at dispensary.  Bill to MSI for tracking only.  Upload vaccine administration data to DIS.  Scan documentation.  Book subsequent doses if possible.","Dispose of supplies."]
["Not Funded Not Eligible","Other","Comprehensive Travel Health Consultation","All patients","with 003",30]
["Not Funded Not Eligible","Other","Pharmacogenomic Consultation Service","All patients","with 003",30]
["Not Funded Not Eligible","Other","Malaria Chemoprophylaxis Assessment and Prescribing","All patients","with 002",30]
["Not Funded Not Eligible","Other","Any Service for a Patient without an NS Health card that is not covered for out of province patients","All Non-NS Residents (no NS Health Card)","with 002",15]
["Not Funded Not Eligible","Health Management","Medavie Blue Cross Managing Chronic Disease Benefit: Diabetes Care","Recipient",null,60,"Fee set by pharmacy (max yearly coverage $250-500 but varies by plan, copay may apply)"]
["Not Funded Not Eligible","Health Management","Medavie Blue Cross Managing Chronic Disease Benefit: Heart Health","Recipient",null,60,"Fee set by pharmacy (max yearly coverage $250-500 but varies by plan, copay may apply)"]
["Not Funded Not Eligible","Health Management","Medavie Blue Cross Managing Chronic Disease Benefit: Lung Health","Recipient",null,60,"Fee set by pharmacy (max yearly coverage $250-500 but varies by plan, copay may apply)"]
["Not Funded Not Eligible","Health Management","Medavie Blue Cross Managing Chronic Disease Benefit: Smoking Cessation","Recipient",null,60,"Fee set by pharmacy (max yearly coverage $250-500 but varies by plan, copay may apply)"]
["Not Funded Not Eligible","Other","Completion of Forms not covered by an agreement (ex: Special auth forms)","All Patients",null,15,"Fee set by pharmacy (physicians charge between $5-25 for this service)"]

{"sheet":"Service Master List","index":1,"n_rows":124,"n_cols":18,"rows_kept":124,"cut":false,"hidden":false,"merged":[[1,4,1,7]]}
[null,null,"Pharmacy Services - Community Pharmacy Primary Care Clinic"]
[null,null,null,null,"Default Block Time (mins)",null,null,null,15]
[]
["Funding Status","Category","Service","Recipient","Project PIN","SSC code","Fee","Notes","Available for Same Day Appt","# of Blocks Per Appt","Time","Screening","Booking Notes","Prepare in Advance","Service Notes","Post-Service Admin","Post-Service Pharmacist","Comments"]
["Funded","Drug Administration","Covid-19 Vaccine Administration","All Patients","To be added to CanImmunize",null,18,"Paid via CanImmunize.  $0 Online","CanImmunize",0.5,{"$f":"+Service_Master_List[[#This Row],['# of Blocks Per Appt]]*$I$2","v":7.5},"N/A - patient will receive vaccine as part of another service.  Pharmacist may ask to book into Internal Calendar","Booked into CanImmunize Internal Calendar","Standard injection supplies (kit) for COVID.  Check-in through CanImmunize.","Usual process through CanImmunize.","N/A - Billed through MSI"]
["Funded","Drug Administration","Influenza Vaccine Administration","All Patients","To be added to CanImmunize",null,13,"Paid via CanImmunize.  $0 Online","CanImmunize",0.5,{"$f":"+Service_Master_List[[#This Row],['# of Blocks Per Appt]]*$I$2","v":7.5},"During flu season if someone is booking another appointment, you could ask if they want to get their flu shot when they visit the clinic.  N/A - patient will receive vaccine as part of another service.  Pharmacist may ask to book into Internal Calendar","Booked into CanImmunize Internal Calendar","Standard injection supplies (kit) for influenza.  Check-in through CanImmunize.","Usual process through CanImmunize.","N/A - Billed through MSI"]
["Funded","Drug Administration","Basic Assessment and Injection for all publicly funded VACCINES (except influenza)","All NS Residents","To be added to CanImmunize",null,18,null,null,1,{"$f":"+Service_Master_List[[#This Row],['# of Blocks Per Appt]]*$I$2","v":15},"What is the patient eligible for?  It may be best to have a phone/virtual consult first to determine eligibility if patient isn't sure."]
["Funded","Drug Administration","Complex VACCINE assessment fee (billed in addtion when complex criteria is met)","All NS Residents",92099625,"with 002",22,null,null,1,{"$f":"+Service_Master_List[[#This Row],['# of Blocks Per Appt]]*$I$2","v":15},"See specific criteria list to check if this is considered complex in nature"]
["Funded","Drug Administration","Basic assessment and injection of MEDICATIONS (Im or SC)","All NS Residents",92099719,"with 002",20,null,null,1,{"$f":"+Service_Master_List[[#This Row],['# of Blocks Per Appt]]*$I$2","v":15},"Does the patient already have a prescription?  Is the patient brining the product with them?"]
["Funded","Drug Administration","Complex MEDICATION assessment fee (IM or SC) billed in addtion when the complex medication criteria is met","All NS Residents",92099626,"with 002",22,null,null,1,{"$f":"+Service_Master_List[[#This Row],['# of Blocks Per Appt]]*$I$2","v":15},"See specific criteria list to check if this is considered complex in nature"]
["Funded","Health Management","Prescribing Contraception Initial Assessment that results in a prescription","All NS Residents",92099763,"with 002",20,null,"No",2,{"$f":"+Service_Master_List[[#This Row],['# of Blocks Per Appt]]*$I$2","v":30},"Patient's sex assigned at birth must be female, and is looking for hormones to prevent contraception (not for other uses)"]
["Funded","Health Management","Prescribing Contraception Initial Assessment that does not result in a prescription","All NS Residents",92099702,"with 002",20,null,"No",2,{"$f":"+Service_Master_List[[#This Row],['# of Blocks Per Appt]]*$I$2","v":30}]
["Funded","Health Management","Prescribing Contraception subsequent assessment that results in a change","All NS Residents",92099762,"with 002",20,null,"No",1,{"$f":"+Service_Master_List[[#This Row],['# of Blocks Per Appt]]*$I$2","v":15}]
["Funded","Health Management","Prescribing Contraception Subsequent assessment that does not result in a change","All NS Residents",92099761,"with 002",12,null,"No",1,{"$f":"+Service_Master_List[[#This Row],['# of Blocks Per Appt]]*$I$2","v":15}]
["Funded","Health Management","Community Pharmacy Led Anticoagulation Management Service (monthly service fee, to be billed if 1 visit/month)","All NS Residents",92099751,"with 003",50,null,"No",1,{"$f":"+Service_Master_List[[#This Row],['# of Blocks Per Appt]]*$I$2","v":15},"Has the patient been part of the CPAMS program already?  Do they have a family provider?"]
["Not Funded Eligible","Health Management","CPAMS: Shadow billing to track subsequent visits within the month","All NS Residents",92099664,"with 003",0,null,"No",1,{"$f":"+Service_Master_List[[#This Row],['# of Blocks Per Appt]]*$I$2","v":15}]
["Funded","Health Management","Bloom Monthly fee (first 6 months)","All NS Residents",92099744," with 003",75,null,"No",2,{"$f":"+Service_Master_List[[#This Row],['# of Blocks Per Appt]]*$I$2","v":30},"One or more mental health or addiction diagnoses\nAND\nA medication problem that they would like to work on with their pharmacist"]
["Funded","Health Management","Bloom Monthly fee (7+ months)","All NS Residents",92099743,"with 003",30,null,"No",1,{"$f":"+Service_Master_List[[#This Row],['# of Blocks Per Appt]]*$I$2","v":15}]
["Not Funded Eligible","Health Management","Bloom: Shadow billing to track subsequent visits within the month","All NS Residents",92099665,"with 003",0,null,"No",1,{"$f":"+Service_Master_List[[#This Row],['# of Blocks Per Appt]]*$I$2","v":15}]
["Funded","Medication Review","Basic Medication Review (Usual Pharmacare Copays Apply)","All Pharmacare Patients",92099755,"with 003",52.5,null,"No",2,{"$f":"+Service_Master_List[[#This Row],['# of Blocks Per Appt]]*$I$2","v":30},"Rare that patient will ever request this service.  Only funded for patients of Pharmacare.  Usual copays apply (30% or $15.75,  20% or $10.50).  See comments for eligibility criteria. $52.50 for all other patients.  Confirm patient okay with copay.  See comments for MSI eligibility.  Remind patient to bring in their medications.","Remind patients to bring in their medication.","If patient must pay copay, check receipt on check-in.","Follow standard form process.  Ensure pharmacist signs patient copy of the medication list.  Obtain a patient signature on pharmacy copy of the list. Print 2 copies of the list.","Bill MSI, Scan documentation, Fax notification if necessary.",null,"Print two copies of the list.  One for the patient (phc signs), one for the pharmacy (patient signs).  Eligibility:  3 or more prescription medications that are for chronic conditions and are covered by Pharmacare.  Patient is covered by Pharmacare (except Long Term Care program).  Patient does not live in a nursing home or a home for special care."]
["Funded","Medication Review","Basic Medication Review Follow-ups","All Pharmacare Patients",92099754,"with 003",20,null,"No",1,{"$f":"+Service_Master_List[[#This Row],['# of Blocks Per Appt]]*$I$2","v":15},"N/A - Pharmacist must initiate follow-up at the appropriate time.  Phc may instruct Clinic Admin to book an appointment when appropriate."]
["Funded","Medication Review","Advanced Medication Review (Usual Pharmacare Copays Apply)","All Seniors Pharmacare Patients",92099753,"with 006",150,null,"No",4,60,"Only funded for patients of Seniors Pharmacare.  Usual copays apply (30% or $45, $0 if annual deductible met).  $150 for all other patients.  See comments for MSI eligibility.","Remind patients to bring in their medication.","If patient must pay copay, check receipt on check-in.  Phc to access relevant labs, prepare service forms.","Follow standard form process.  Ensure pharmacist signs patient copy of the medication list.  Obtain a patient signature on pharmacy copy of the list. Print 2 copies of the list.","Bill MSI, Scan documentation, Fax notification if necessary.",null,"Print labs from SHARE and scan.  Do not transcribe values.  Print two copies of the list.  One for the patient (phc signs), one for the pharmacy (patient signs)."]
["Funded","Medication Review","Advanced Medication Review Follow-ups","All Seniors Pharmacare Patients",92099752,"with 003",20,null,"No",1,{"$f":"+Service_Master_List[[#This Row],['# of Blocks Per Appt]]*$I$2","v":15},"N/A - Pharmacist must initiate follow-up at the appropriate time.  Phc may instruct Clinic Admin to book an appointment when appropriate.","Indicate Service","Print/Access initial service to determine reason for follow-up (i.e. if medication therapy problem)."]
["Funded","Medication Review","Complex Medication Review (only covered at CPPCC sites for eligible patients, no copay)","All NS Residents",92099634,"with 002",150,null,"No",4,60,"Patient has been referred for a medication assessment by a physician, nurse practitioner or NSH primary care site manager. Referral may also be by another pharmacist but only for unattached patients and if the needs of the patient are outside the expected scope of the referring pharmacist.\nOR -Patient is currently an unattached with four or more medications and at least one diagnosed chronic condition, with a significant\nunaddressed healthcare need that could benefit from a comprehensive medication review. OR -Patient is currently an unattached patient with complex medical issues and medications, history of lack of consistent monitoring or follow up\nregarding medication management, and could benefit from a comprehensive medication review to identify any drug related problems.","Remind patients to bring in their medication."]
["Funded","Medication Review","Complex Medication Review Follow ups","All NS Residents",92099633,"with 002",20,null,"No",1,{"$f":"+Service_Master_List[[#This Row],['# of Blocks Per Appt]]*$I$2","v":15},"N/A, pharmacist will initiate follow up"]
["Funded","Other","Take Home Naloxone Kit Training","All NS Residents",92099748,"with 003",25,null,"No",1,{"$f":"+Service_Master_List[[#This Row],['# of Blocks Per Appt]]*$I$2","v":15},"Eligible for all NS Residents who may encounter situations where they may encounter someone at risk of overdose.  Rare that patient would  book this service but it may be referred by the dispensary.","None","Take Home Naloxone Kit.  Patient information sheet.","Usual consultation","Bill to MSI on Dummy Patient file for Take Home Naloxone.","N/A","N/A"]
["Funded","Prescribing","PPCC Prescription Renewal (1-3 meds)","All NS Residents",92099620,"with 002",12,null,"Recommended",1,{"$f":"+Service_Master_List[[#This Row],['# of Blocks Per Appt]]*$I$2","v":15},"Determine which medications need to be renewed.","Indicate in booking which medications need to be renewed.","Pharmacist to download relevant SHARE data.  Download Renewal Templates if in use.","Efficacy (S/O), Tolerability (S/O), Labs, Red Flags, Review Medical Background, Develop Plan, Issue Prescription (if applicable)","Bill service to MSI, Fax Rx to patient pharmacy if applicanble) Notification if applicable, Scan documentation (if applicable)",null,"Print and scan relevant labs.  Do not type out."]
["Funded","Prescribing","Prescription Renewal (4+ meds)","All NS Residents",92099619,"with 002",20,null,"Recommended",2,{"$f":"+Service_Master_List[[#This Row],['# of Blocks Per Appt]]*$I$2","v":30},"Determine which medications need to be renewed.","Indicate in booking which medications need to be renewed.","Pharmacist to download relevant SHARE data.  Download Renewal Templates if in use.","Efficacy (S/O), Tolerability (S/O), Labs, Red Flags, Review Medical Background, Develop Plan, Issue Prescription (if applicable)","Bill service to MSI, Fax Rx to patient pharmacy if applicanble) Notification if applicable, Scan documentation (if applicable)",null,"Print and scan relevant labs.  Do not type out."]
["Funded","Prescribing","Prescription Adaptation Refusal to Fill #1          Prescription Adaptation Refusal to Fill #2             Prescription Adaptation Refusal to Fill #3","All NS Residents","92099770           92099655      92099654","with 002",14,null,"Optional",1,{"$f":"+Service_Master_List[[#This Row],['# of Blocks Per Appt]]*$I$2","v":15},"N/A","N/A","N/A","N/A - Usually completed with dispensing.  Document assessment details why prescription would be refused and plan.","Bill service to MSI, Notification if applicable, Scan documentation (if applicable)"]
["Funded","Prescribing","Prescription Adaptation -changing for a clinical reason #1  Prescription Adaptation- changing for a clinical reason #2   Prescription Adaptation- changing for a clinical reason #3","All NS Residents","92099769   92099653    92099652","with 002",14,null,"Optional",1,{"$f":"+Service_Master_List[[#This Row],['# of Blocks Per Appt]]*$I$2","v":15},"N/A","N/A","N/A","Usually completed within the context of another assessment or when filling a prescription.  Billing may be required for tracking purposes.","Bill service to MSI (note if another service is the primary service this may be billed with $0 fee), Fax Rx to patient pharmacy if applicanble) Notification if applicable, Scan documentation (if applicable)"]
["Funded","Prescribing","Therapeutic Substitution – #1                              Therapeutic Substitution - #2                                 Therapeutic Substitution - #3","All NS Residents","92099658                92099657          92099656","with 002",26.5,null,"Optional",1,{"$f":"+Service_Master_List[[#This Row],['# of Blocks Per Appt]]*$I$2","v":15},"N/A","N/A","N/A","Usually completed within the context of another assessment or when filling a prescription.  Billing may be required for tracking purposes.","Bill service to MSI (note if another service is the primary service this may be billed with $0 fee), Fax Rx to patient pharmacy if applicanble) Notification if applicable, Scan documentation (if applicable)"]
["Funded","Prescribing","Assessment – Uncomplicated UTI that results in a prescription","All NS Residents",92099766,"with 002",20,null,"Recommended",1,{"$f":"+Service_Master_List[[#This Row],['# of Blocks Per Appt]]*$I$2","v":15},"Patient > 16 years old, sex assigned at birth: female, previously diagnosied with a urinary tract infection.","N/A","Prepare protocol form.","Follow protocol.","Bill service to MSI, Fax Rx to patient pharmacy if applicanble) Notification if applicable, Scan documentation (if applicable)",null,"Print and scan relevant labs.  Do not type out."]
["Funded","Prescribing","Assessment of Uncomplicated UTI that result in a prescription","All NS Residents",92099766,"with 002",20,null,"Recommended",1,15,"Patient > 16 years old, sex assigned at birth: female, previously diagnosied with a urinary"]
["Funded","Prescribing","Assessment Uncomplicated UTI that does not result in a prescription","All NS Residents",92099701,"with 002",20,null,"Recommended",1,{"$f":"+Service_Master_List[[#This Row],['# of Blocks Per Appt]]*$I$2","v":15},"Patient > 16 years old, sex assigned at birth: female, previously diagnosied with a urinary tract infection.","N/A","Prepare protocol form.","Follow protocol.","Bill service to MSI, Fax Rx to patient pharmacy if applicanble) Notification if applicable, Scan documentation (if applicable)",null,"Print and scan relevant labs.  Do not type out."]
["Funded","Prescribing","Prescribing- Lyme treatment (early Lyme)","All NS Residents",92099629,"with 002",20,null,"Recommended",1,{"$f":"+Service_Master_List[[#This Row],['# of Blocks Per Appt]]*$I$2","v":15},"Expanding Rash (may or may not be bullseye)"]
["Funded","Prescribing","Prescribing- Lyme Chemoprophylaxis","All NS Residents",92099765,"with 002",20,null,"Recommended",1,{"$f":"+Service_Master_List[[#This Row],['# of Blocks Per Appt]]*$I$2","v":15},"Does the patient have symptoms of Lyme Disease? (Yes - Refer), Does the patient have the tick or are they able to distinguish between deer ticks and dog ticks? Was the tick removed within 72 hours?","N/A","Prepare protocol form.  Print out Health Canada brochure (see comments for link)","Follow protocol.","Bill service to MSI, Fax Rx to patient pharmacy if applicanble) Notification if applicable, Scan documentation (if applicable)",null,"Lyme-Disease-Spring-Brochure-3Fold-EN-WEB.PDF (canada.ca)"]
["Funded","Prescribing","Assessment Lyme Chemoprophylaxis or treatment that does not result in a prescription","All NS Residents",92099700,"with 002",20,null,"Recommended",1,{"$f":"+Service_Master_List[[#This Row],['# of Blocks Per Appt]]*$I$2","v":15},"Does the patient have symptoms of Lyme Disease? (Yes - Refer), Does the patient have the tick or are they able to distinguish between deer ticks and dog ticks? Was the tick removed within 72 hours?","N/A","Prepare protocol form.  Print out Health Canada brochure (see comments for link)","Follow protocol.","Bill service to MSI, Notification if applicable, Scan documentation (if applicable)",null,"Lyme-Disease-Spring-Brochure-3Fold-EN-WEB.PDF (canada.ca)"]
["Funded","Prescribing","Prescribing Herpes Zoster that results in a prescription","All NS Residents",92099764,"with 002",20,null,"Recommended",1,{"$f":"+Service_Master_List[[#This Row],['# of Blocks Per Appt]]*$I$2","v":15},"No screening.  Book if the patient indicates they have a rash which may be shingles.","N/A","Prepare protocol form","Follow protocol.","Bill service to MSI, Fax Rx to patient pharmacy if applicanble) Notification if applicable, Scan documentation (if applicable)",null,"Print and scan relevant labs.  Do not type out."]
["Funded","Prescribing","Assessment Herpes Zoster that does not result in a prescription","All NS Residents",92099699,"with 002",20,null,"Recommended",1,{"$f":"+Service_Master_List[[#This Row],['# of Blocks Per Appt]]*$I$2","v":15},"No screening.  Book if the patient indicates they have a rash which may be shingles.","N/A","Prepare protocol form","Follow protocol.","Bill service to MSI, Fax Rx to patient pharmacy if applicanble) Notification if applicable, Scan documentation (if applicable)",null,"Print and scan relevant labs.  Do not type out."]
["Funded","Prescribing","Prescribing Budesonide for Covid-19","All NS Residents",92099745,"with 002",20,null,"Recommended",1,{"$f":"+Service_Master_List[[#This Row],['# of Blocks Per Appt]]*$I$2","v":15},"Patient has a positive test for COVID within the past 14 days.","Due to concerns regarding the spread of COVID, consider whether a virtual consultation is possible.","If in person, ensure masking, hand-sanitizer, isolate in 2nd clinic room if possible.","Follow protocol.","Bill service to MSI, Fax Rx to patient pharmacy if applicanble) Notification if applicable, Scan documentation (if applicable)"]
["Funded","Health Management","Deprescribing PPI s Initial Assessment","All NS Residents",92099760,"with 003",52.5,null,"No",2,{"$f":"+Service_Master_List[[#This Row],['# of Blocks Per Appt]]*$I$2","v":30},"Patient on a PPI and would like to discontinue the product"]
["Funded","Health Management","Deprescribing PPIs Follow up Assessment (limit 2)","All NS Residents",92099759,"with 003",20,null,null,1,{"$f":"+Service_Master_List[[#This Row],['# of Blocks Per Appt]]*$I$2","v":15}]
["Funded","Health Management","Deprescribing BZRA  Initial Assessment","All NS Residents",92099758,"with 003",150,null,"No",4,{"$f":"+Service_Master_List[[#This Row],['# of Blocks Per Appt]]*$I$2","v":60},"Patient on a Benzo and would like to taper their dose to discontinue to product"]
["Funded","Health Management","Deprescribing BZRA Follow-ups (limit 7)","All NS Residents",92099618,"with 003",20,null,"No",1,{"$f":"+Service_Master_List[[#This Row],['# of Blocks Per Appt]]*$I$2","v":15}]
["Not Funded Eligible","Health Management","Service in scope but no currently funded (previously names Complex Therapy Assessment) Time and care required does not meet criteria for any service.  ","All NS Residents",92099715,"with 002",25,"Qty 1 for 10 minutes spent = $25 Increase qty to a max of 6 for each 10 minute spent on patient care","Optional",1,10,"Qty 1 for 10 minutes spent = $25.  Increase qty to a maximum of 6 for each 10 minutes spent on patient care"]
["Not Funded Eligible","Prescribing","Prescribing with a diagnosis as per NSCP standard in collaboration with another provider","All NS Residents",92099726,"with 002",25,null,"Optional",1,{"$f":"+Service_Master_List[[#This Row],['# of Blocks Per Appt]]*$I$2","v":15},"Will not be booked by a patient"]
["Funded","Health Management","Chronic Disease Management – Diabetes – Initial/Annual assessment","All NS Residents w/ Diabetes",92099721,"with 003",125,null,"No",3,45,"Patient has this chronic disease state and there is a need (medication, life style, condition based) that has not been met "]
["Funded","Health Management","Chronic Disease Diabetes Management - Follow-up ","All NS Residents w/ Diabetes",92099720,"with 003",20,null,"Optional",1,{"$f":"+Service_Master_List[[#This Row],['# of Blocks Per Appt]]*$I$2","v":15}]
["Funded","Health Management","Chronic Disease Management – Lung Disease (Asthma/COPD) Initial/Annual Assessment","All NS Residents w/ Asthma/COPD",92099706,"with 003",125,null,"No",3,45,"Patient has this chronic disease state and there is a need (medication, life style, condition based) that has not been met "]
["Funded","Health Management","Chronic Disease Management – Lung Disease Follow-up ","All NS Residents w/ Asthma/COPD",92099705,"with 003",20,null,"Optional",1,{"$f":"+Service_Master_List[[#This Row],['# of Blocks Per Appt]]*$I$2","v":15}]
["Funded","Health Management","Chronic Disease Management -Cardiovascular Disease Initial/Annual Assessment","All NS Residents w/ CVD",92099704,"with 003",125,null,"No",3,45,"Patient has this chronic disease state and there is a need (medication, life style, condition based) that has not been met "]
["Funded","Health Management","Chronic Disease Management Cardiovascular Disease Follow-up ","All NS Residents w/ CVD",92099703,"with 003",20,null,"Optional",1,{"$f":"+Service_Master_List[[#This Row],['# of Blocks Per Appt]]*$I$2","v":15}]
["Funded","Health Management","Chronic Disease Management - ADHD Initial assessment","All NS Residents",92099643,"with 002",125,null,"No",4,{"$f":"+Service_Master_List[[#This Row],['# of Blocks Per Appt]]*$I$2","v":60},"Patient has this chronic disease state and there is a need (medication, life style, condition based) that has not been met "]
["Funded","Health Management","Chronic Disease Management - ADHD Follow up","All NS Residents",92099639,"with 002",20,null,null,1,{"$f":"+Service_Master_List[[#This Row],['# of Blocks Per Appt]]*$I$2","v":15}]
["Funded","Health Management","Chronic Disease Management - Non cancer chronic pain Initial Assessment","All NS Residents",92099642,"with 002",125,null,"No",4,{"$f":"+Service_Master_List[[#This Row],['# of Blocks Per Appt]]*$I$2","v":60},"Patient has this chronic disease state and there is a need (medication, life style, condition based) that has not been met "]
["Funded","Health Management","Chronic Disease Management - Non cancer chronic pain Follow up","All NS Residents",92099638,"with 002",20,null,null,1,{"$f":"+Service_Master_List[[#This Row],['# of Blocks Per Appt]]*$I$2","v":15}]
["Funded","Health Management","Chronic Disease Mangement- Obesity Initial Assessment","All NS Residents",92099644,"with 002",125,null,"No",4,{"$f":"+Service_Master_List[[#This Row],['# of Blocks Per Appt]]*$I$2","v":60},"Patient has this chronic disease state and there is a need (medication, life style, condition based) that has not been met "]
["Funded","Health Management","Chronic Disease Management - Obesity Follow up","All NS Residents",92099640,"with 002",20,null,null,1,{"$f":"+Service_Master_List[[#This Row],['# of Blocks Per Appt]]*$I$2","v":15}]
["Funded","Health Management","Chronic Disease Management - Other Initial assessment","All NS Residents",92099628,"with 002",125,null,"No",3,45,"Patient has this chronic disease state and there is a need (medication, life style, condition based) that has not been met "]
["Funded","Health Management","Chronic Disease Management - Other follow up","All NS Residents",92099627,"with 002",20,null,null,1,{"$f":"+Service_Master_List[[#This Row],['# of Blocks Per Appt]]*$I$2","v":15}]
["Funded","Health Management","Tobacco Use Reduction Program – Initial Assessment and Discussion","All NS Residents",92099714,"with 003",40,null,"No",4,{"$f":"+Service_Master_List[[#This Row],['# of Blocks Per Appt]]*$I$2","v":60},"Patient would like to reduce/stop nicotine product and would like to have counselling, meet with pharmacist to discuss goals and ways to achieve them. May or may not include a prescription"]
["Funded","Health Management","Tobacco Use Reduction (product only)","All NS Residents",92099667,"with 002",20,null,"No",1,{"$f":"+Service_Master_List[[#This Row],['# of Blocks Per Appt]]*$I$2","v":15},"Minor ailment assessment, prescribing a nicotine reduction product"]
["Funded","Health Management","Tobacco Use Reduction Program –Follow-up 1-7","All NS Residents",92099712,"with 003",15,"Maximum 7 per year","No",1,{"$f":"+Service_Master_List[[#This Row],['# of Blocks Per Appt]]*$I$2","v":15}]
["Not Funded Eligible","Prescribing","Renewal Assessment that does not result in a prescription","All NS Residents",92099698,"with 002",12,null,"No",1,{"$f":"+Service_Master_List[[#This Row],['# of Blocks Per Appt]]*$I$2","v":15},"Determine which medications need to be renewed.  Note in this situation after the consultation the pharmacist will have made a decision not to prescribe.  This is normally not covered by MSI.  This assessment will be billed using this PIN.","Indicate in booking which medications need to be renewed.","Pharmacist to download relevant SHARE data.  Download Renewal Templates if in use.","Efficacy (S/O), Tolerability (S/O), Labs, Red Flags, Review Medical Background, Develop Plan, Issue Prescription (if applicable)","Bill service to MSI, Notification if applicable, Scan documentation (if applicable)",null,"Print and scan relevant labs.  Do not type out."]
["Not Funded Eligible","Prescribing","Prescription Adaptation Refusal to Fill","All Non-Pharmacare Patients",92099742,"with 001",14,null,"Optional",1,{"$f":"+Service_Master_List[[#This Row],['# of Blocks Per Appt]]*$I$2","v":15},{"$f":"+L29","v":"N/A"},{"$f":"+M29","v":"N/A"},{"$f":"+N29","v":"N/A"},{"$f":"+O29","v":"N/A - Usually completed with dispensing.  Document assessment details why prescription would be refused and plan."},{"$f":"+P29","v":"Bill service to MSI, Notification if applicable, Scan documentation (if applicable)"}]
["Not Funded Eligible","Prescribing","Prescription Adaptation -Other","All non-Pharmacare Patients",92099741,"E",14,null,"Optional",1,{"$f":"+Service_Master_List[[#This Row],['# of Blocks Per Appt]]*$I$2","v":15},{"$f":"+L30","v":"N/A"},{"$f":"+M30","v":"N/A"},"N/A","Usually completed within the context of another assessment or when filling a prescription.  Billing may be required for tracking purposes.","Bill service to MSI (note if another service is the primary service this may be billed with $0 fee), Fax Rx to patient pharmacy if applicanble) Notification if applicable, Scan documentation (if applicable)"]
["Not Funded Eligible","Prescribing","Therapeutic Substitution – PPI","All non-Pharmacare Patients",92099740,"with 002",26.5,null,"Optional",1,{"$f":"+Service_Master_List[[#This Row],['# of Blocks Per Appt]]*$I$2","v":15},{"$f":"+L31","v":"N/A"},{"$f":"+M31","v":"N/A"},"N/A","Usually completed within the context of another assessment or when filling a prescription.  Billing may be required for tracking purposes.","Bill service to MSI (note if another service is the primary service this may be billed with $0 fee), Fax Rx to patient pharmacy if applicanble) Notification if applicable, Scan documentation (if applicable)",0,0]
["Not Funded Eligible","Prescribing","Therapeutic Sub- Other Circumstances","All NS Residents Requiring T/S Other than PPI",92099739,"with 002",26.5,null,"Optional",1,{"$f":"+Service_Master_List[[#This Row],['# of Blocks Per Appt]]*$I$2","v":15},"May be provided for patients with refills of a drug that is short from the manufacturer.  Usually done as part of another service (renewal assessment) or filling a prescription with allergy, interaction, coverage or supply problem.","Indicate medication to be substituted and why. (e.g. candesartan (short from manufacturer), Dispensary referral (drug allergy/interaction))","N/A","Usually completed within the context of another assessment or when filling a prescription.  Billing may be required for tracking purposes.","Bill service to MSI (note if another service is the primary service this may be billed with $0 fee), Fax Rx to patient pharmacy if applicanble) Notification if applicable, Scan documentation (if applicable)"]
["Funded","Prescribing","Prescribing in an Emergency","All NS Residents",92099727,"with 002",28,null,"No",1,{"$f":"+Service_Master_List[[#This Row],['# of Blocks Per Appt]]*$I$2","v":15},"Reserved for emergency situations where a patient has an immediate health risk and the situation is not a renewal of existing medication (e.g. anaphylaxis, requiring an Epi-Pen).  Some may include Nitrospray for angina or salbutamol for an asthma attack but renewal presrcribing would normally apply.","Do not book.  Get the pharmacist to look at an urgent health crisis.  Normally this would be done at the dispensary because medication would need to be administered right away.  Confirm with the pharmacist if we should call 911.","N/A","Quickly assess patient health status.  Document after treatment is administered.","Bill service, Scan documentation, Fax notification"]
["Funded","Prescribing","Pharmacist independent prescribing with diagnosis confirmed by pharmacist (except mental health). NSCP Study","All NS Residents",92099697,"with 002",25,null,"Optional",1,{"$f":"+Service_Master_List[[#This Row],['# of Blocks Per Appt]]*$I$2","v":15},"Will not be booked by a patient"]
["Not Funded Eligible","Prescribing","Prescribing for a Minor Ailment: Other conditions: Dandruff, Corns and calluses, warts (excluding genital or facial), cough, nasal congestion","All NS Residents",92099725,"with 002",20,null,"Recommended",1,{"$f":"+Service_Master_List[[#This Row],['# of Blocks Per Appt]]*$I$2","v":15},"Confirm condition is one of the minor ailments.","Indicate which condition will be assessed.","Prepare/Print assessment forms.","Usual assessment of minor ailment (use form), OLD CARTS (onset, location, duration, characteristic, allev/aggrav (including previous tx), radiating/relieving, timing, severity), Review medical background,",{"$f":"+P36","v":"Bill service to MSI, Fax Rx to patient pharmacy if applicanble) Notification if applicable, Scan documentation (if applicable)"}]
["Funded","Prescribing","Prescribing for a Minor Ailment: Conjunctivitis Assessment","All NS Residents",92099659,"with 002",20,null,"Recommended",1,{"$f":"+Service_Master_List[[#This Row],['# of Blocks Per Appt]]*$I$2","v":15},"Confirm condition is one of the minor ailments.","Indicate which condition will be assessed.","Prepare/Print assessment forms.","Usual assessment of minor ailment (use form), OLD CARTS (onset, location, duration, characteristic, allev/aggrav (including previous tx), radiating/relieving, timing, severity), Review medical background,","Bill service to MSI, Fax Rx to patient pharmacy if applicanble) Notification if applicable, Scan documentation (if applicable)"]
["Funded","Prescribing","Prescribing for a Minor Ailment: Contact Allergic Dermatitis Assessment ","All NS Residents",92099690,"with 002",20,null,"Recommended",1,{"$f":"+Service_Master_List[[#This Row],['# of Blocks Per Appt]]*$I$2","v":15},"Confirm condition is one of the minor ailments.","Indicate which condition will be assessed.","Prepare/Print assessment forms.","Usual assessment of minor ailment (use form), OLD CARTS (onset, location, duration, characteristic, allev/aggrav (including previous tx), radiating/relieving, timing, severity), Review medical background,","Bill service to MSI, Fax Rx to patient pharmacy if applicanble) Notification if applicable, Scan documentation (if applicable)"]
["Funded","Prescribing","Prescribing for a Minor Ailment: Mild Acne Assessment","All NS Residents",92099689,"with 002",20,null,"Recommended",1,{"$f":"+Service_Master_List[[#This Row],['# of Blocks Per Appt]]*$I$2","v":15},"Confirm condition is one of the minor ailments.","Indicate which condition will be assessed.","Prepare/Print assessment forms.","Usual assessment of minor ailment (use form), OLD CARTS (onset, location, duration, characteristic, allev/aggrav (including previous tx), radiating/relieving, timing, severity), Review medical background,","Bill service to MSI, Fax Rx to patient pharmacy if applicanble) Notification if applicable, Scan documentation (if applicable)"]
["Funded","Prescribing","Prescribing for a Minor Ailment: Mild to Moderate Eczema Assessment","All NS Residents",92099688,"with 002",20,null,"Recommended",1,{"$f":"+Service_Master_List[[#This Row],['# of Blocks Per Appt]]*$I$2","v":15},"Confirm condition is one of the minor ailments.","Indicate which condition will be assessed.","Prepare/Print assessment forms.","Usual assessment of minor ailment (use form), OLD CARTS (onset, location, duration, characteristic, allev/aggrav (including previous tx), radiating/relieving, timing, severity), Review medical background,","Bill service to MSI, Fax Rx to patient pharmacy if applicanble) Notification if applicable, Scan documentation (if applicable)"]
["Funded","Prescribing","Prescribing for a Minor Ailment: Urticaria Assessment","All NS Residents",92099687,"with 002",20,null,"Recommended",1,{"$f":"+Service_Master_List[[#This Row],['# of Blocks Per Appt]]*$I$2","v":15},"Confirm condition is one of the minor ailments.","Indicate which condition will be assessed.","Prepare/Print assessment forms.","Usual assessment of minor ailment (use form), OLD CARTS (onset, location, duration, characteristic, allev/aggrav (including previous tx), radiating/relieving, timing, severity), Review medical background,","Bill service to MSI, Fax Rx to patient pharmacy if applicanble) Notification if applicable, Scan documentation (if applicable)"]
["Funded","Prescribing","Prescribing for a Minor Ailment: Dyspepsia Assessment","All NS Residents",92099686,"with 002",20,null,"Recommended",1,{"$f":"+Service_Master_List[[#This Row],['# of Blocks Per Appt]]*$I$2","v":15},"Confirm condition is one of the minor ailments.","Indicate which condition will be assessed.","Prepare/Print assessment forms.","Usual assessment of minor ailment (use form), OLD CARTS (onset, location, duration, characteristic, allev/aggrav (including previous tx), radiating/relieving, timing, severity), Review medical background,","Bill service to MSI, Fax Rx to patient pharmacy if applicanble) Notification if applicable, Scan documentation (if applicable)"]
["Funded","Prescribing","Prescribing for a Minor Ailment: GERD Assessment","All NS Residents",92099685,"with 002",20,null,"Recommended",1,{"$f":"+Service_Master_List[[#This Row],['# of Blocks Per Appt]]*$I$2","v":15},"Confirm condition is one of the minor ailments.","Indicate which condition will be assessed.","Prepare/Print assessment forms.","Usual assessment of minor ailment (use form), OLD CARTS (onset, location, duration, characteristic, allev/aggrav (including previous tx), radiating/relieving, timing, severity), Review medical background,","Bill service to MSI, Fax Rx to patient pharmacy if applicanble) Notification if applicable, Scan documentation (if applicable)"]
["Funded","Prescribing","Prescribing for a Minor Ailment: Nausea","All NS Residents",92099684,"with 002",20,null,"Recommended",1,{"$f":"+Service_Master_List[[#This Row],['# of Blocks Per Appt]]*$I$2","v":15},"Confirm condition is one of the minor ailments.","Indicate which condition will be assessed.","Prepare/Print assessment forms.","Usual assessment of minor ailment (use form), OLD CARTS (onset, location, duration, characteristic, allev/aggrav (including previous tx), radiating/relieving, timing, severity), Review medical background,","Bill service to MSI, Fax Rx to patient pharmacy if applicanble) Notification if applicable, Scan documentation (if applicable)"]
["Funded","Prescribing","Prescribing for a Minor Ailment: Hemorrhoids","All NS Residents",92099683,"with 002",20,null,"Recommended",1,{"$f":"+Service_Master_List[[#This Row],['# of Blocks Per Appt]]*$I$2","v":15},"Confirm condition is one of the minor ailments.","Indicate which condition will be assessed.","Prepare/Print assessment forms.","Usual assessment of minor ailment (use form), OLD CARTS (onset, location, duration, characteristic, allev/aggrav (including previous tx), radiating/relieving, timing, severity), Review medical background,","Bill service to MSI, Fax Rx to patient pharmacy if applicanble) Notification if applicable, Scan documentation (if applicable)"]
["Funded","Prescribing","Prescribing for a Minor Ailment: Allergic Rhinitis Assessment","All NS Residents",92099682,"with 002",20,null,"Recommended",1,{"$f":"+Service_Master_List[[#This Row],['# of Blocks Per Appt]]*$I$2","v":15},"Confirm condition is one of the minor ailments.","Indicate which condition will be assessed.","Prepare/Print assessment forms.","Usual assessment of minor ailment (use form), OLD CARTS (onset, location, duration, characteristic, allev/aggrav (including previous tx), radiating/relieving, timing, severity), Review medical background,","Bill service to MSI, Fax Rx to patient pharmacy if applicanble) Notification if applicable, Scan documentation (if applicable)"]
["Funded","Prescribing","Prescribing for a Minor Ailment: Mild Headache Assessment","All NS Residents",92099681,"with 002",20,null,"Recommended",1,{"$f":"+Service_Master_List[[#This Row],['# of Blocks Per Appt]]*$I$2","v":15},"Confirm condition is one of the minor ailments.","Indicate which condition will be assessed.","Prepare/Print assessment forms.","Usual assessment of minor ailment (use form), OLD CARTS (onset, location, duration, characteristic, allev/aggrav (including previous tx), radiating/relieving, timing, severity), Review medical background,","Bill service to MSI, Fax Rx to patient pharmacy if applicanble) Notification if applicable, Scan documentation (if applicable)"]
["Funded","Prescribing","Prescribing for a Minor Ailment: Minor Joint Pain Assessment","All NS Residents",92099680,"with 002",20,null,"Recommended",1,{"$f":"+Service_Master_List[[#This Row],['# of Blocks Per Appt]]*$I$2","v":15},"Confirm condition is one of the minor ailments.","Indicate which condition will be assessed.","Prepare/Print assessment forms.","Usual assessment of minor ailment (use form), OLD CARTS (onset, location, duration, characteristic, allev/aggrav (including previous tx), radiating/relieving, timing, severity), Review medical background,","Bill service to MSI, Fax Rx to patient pharmacy if applicanble) Notification if applicable, Scan documentation (if applicable)"]
["Funded","Prescribing","Prescribing for a Minor Ailment: Minor Muscle Pain Assessment","All NS Residents",92099679,"with 002",20,null,"Recommended",1,{"$f":"+Service_Master_List[[#This Row],['# of Blocks Per Appt]]*$I$2","v":15},"Confirm condition is one of the minor ailments.","Indicate which condition will be assessed.","Prepare/Print assessment forms.","Usual assessment of minor ailment (use form), OLD CARTS (onset, location, duration, characteristic, allev/aggrav (including previous tx), radiating/relieving, timing, severity), Review medical background,","Bill service to MSI, Fax Rx to patient pharmacy if applicanble) Notification if applicable, Scan documentation (if applicable)"]
["Funded","Prescribing","Prescribing for a Minor Ailment: Minor Sleep Disorders Assessment","All NS Residents",92099678,"with 002",20,null,"Recommended",1,{"$f":"+Service_Master_List[[#This Row],['# of Blocks Per Appt]]*$I$2","v":15},"Confirm condition is one of the minor ailments.","Indicate which condition will be assessed.","Prepare/Print assessment forms.","Usual assessment of minor ailment (use form), OLD CARTS (onset, location, duration, characteristic, allev/aggrav (including previous tx), radiating/relieving, timing, severity), Review medical background,","Bill service to MSI, Fax Rx to patient pharmacy if applicanble) Notification if applicable, Scan documentation (if applicable)"]
["Funded","Prescribing","Prescribing for a Minor Ailment: Dysmenorrhea Assessment","All NS Residents",92099677,"with 002",20,null,"Recommended",1,{"$f":"+Service_Master_List[[#This Row],['# of Blocks Per Appt]]*$I$2","v":15},"Confirm condition is one of the minor ailments.","Indicate which condition will be assessed.","Prepare/Print assessment forms.","Usual assessment of minor ailment (use form), OLD CARTS (onset, location, duration, characteristic, allev/aggrav (including previous tx), radiating/relieving, timing, severity), Review medical background,","Bill service to MSI, Fax Rx to patient pharmacy if applicanble) Notification if applicable, Scan documentation (if applicable)"]
["Funded","Prescribing","Prescribing for a Minor Ailment: Emergency Contraception Assessment","All NS Residents",92099676,"with 002",20,null,"Recommended",1,{"$f":"+Service_Master_List[[#This Row],['# of Blocks Per Appt]]*$I$2","v":15},"Confirm condition is one of the minor ailments.","Indicate which condition will be assessed.","Prepare/Print assessment forms.","Usual assessment of minor ailment (use form), OLD CARTS (onset, location, duration, characteristic, allev/aggrav (including previous tx), radiating/relieving, timing, severity), Review medical background,","Bill service to MSI, Fax Rx to patient pharmacy if applicanble) Notification if applicable, Scan documentation (if applicable)"]
["Funded","Prescribing","Prescribing for a Minor Ailment: Dry Eyes Assessment","All NS Residents",92099675,"with 002",20,null,"Recommended",1,{"$f":"+Service_Master_List[[#This Row],['# of Blocks Per Appt]]*$I$2","v":15},"Confirm condition is one of the minor ailments.","Indicate which condition will be assessed.","Prepare/Print assessment forms.","Usual assessment of minor ailment (use form), OLD CARTS (onset, location, duration, characteristic, allev/aggrav (including previous tx), radiating/relieving, timing, severity), Review medical background,","Bill service to MSI, Fax Rx to patient pharmacy if applicanble) Notification if applicable, Scan documentation (if applicable)"]
["Funded","Prescribing","Prescribing for a Minor Ailment: Oral Ulcers Assessment","All NS Residents",92099674,"with 002",20,null,"Recommended",1,{"$f":"+Service_Master_List[[#This Row],['# of Blocks Per Appt]]*$I$2","v":15},"Confirm condition is one of the minor ailments.","Indicate which condition will be assessed.","Prepare/Print assessment forms.","Usual assessment of minor ailment (use form), OLD CARTS (onset, location, duration, characteristic, allev/aggrav (including previous tx), radiating/relieving, timing, severity), Review medical background,","Bill service to MSI, Fax Rx to patient pharmacy if applicanble) Notification if applicable, Scan documentation (if applicable)"]
["Funded","Prescribing","Prescribing for a Minor Ailment: Oral Fungal Infection Assessment","All NS Residents",92099673,"with 002",20,null,"Recommended",1,{"$f":"+Service_Master_List[[#This Row],['# of Blocks Per Appt]]*$I$2","v":15},"Confirm condition is one of the minor ailments.","Indicate which condition will be assessed.","Prepare/Print assessment forms.","Usual assessment of minor ailment (use form), OLD CARTS (onset, location, duration, characteristic, allev/aggrav (including previous tx), radiating/relieving, timing, severity), Review medical background,","Bill service to MSI, Fax Rx to patient pharmacy if applicanble) Notification if applicable, Scan documentation (if applicable)"]
["Funded","Prescribing","Prescribing for a Minor Ailment: Fungal Skin Infection Assessment","All NS Residents",92099672,"with 002",20,null,"Recommended",1,{"$f":"+Service_Master_List[[#This Row],['# of Blocks Per Appt]]*$I$2","v":15},"Confirm condition is one of the minor ailments.","Indicate which condition will be assessed.","Prepare/Print assessment forms.","Usual assessment of minor ailment (use form), OLD CARTS (onset, location, duration, characteristic, allev/aggrav (including previous tx), radiating/relieving, timing, severity), Review medical background,","Bill service to MSI, Fax Rx to patient pharmacy if applicanble) Notification if applicable, Scan documentation (if applicable)"]
["Funded","Prescribing","Prescribing for a Minor Ailment: Vaginal Candidiasis Assessment","All NS Residents",92099671,"with 002",20,null,"Recommended",1,{"$f":"+Service_Master_List[[#This Row],['# of Blocks Per Appt]]*$I$2","v":15},"Confirm condition is one of the minor ailments.","Indicate which condition will be assessed.","Prepare/Print assessment forms.","Usual assessment of minor ailment (use form), OLD CARTS (onset, location, duration, characteristic, allev/aggrav (including previous tx), radiating/relieving, timing, severity), Review medical background,","Bill service to MSI, Fax Rx to patient pharmacy if applicanble) Notification if applicable, Scan documentation (if applicable)"]
["Funded","Prescribing","Prescribing for a Minor Ailment: Threadworms/Pinworms Assessment","All NS Residents",92099670,"with 002",20,null,"Recommended",1,{"$f":"+Service_Master_List[[#This Row],['# of Blocks Per Appt]]*$I$2","v":15},"Confirm condition is one of the minor ailments.","Indicate which condition will be assessed.","Prepare/Print assessment forms.","Usual assessment of minor ailment (use form), OLD CARTS (onset, location, duration, characteristic, allev/aggrav (including previous tx), radiating/relieving, timing, severity), Review medical background,","Bill service to MSI, Fax Rx to patient pharmacy if applicanble) Notification if applicable, Scan documentation (if applicable)"]
["Funded","Prescribing","Prescribing for a Minor Ailment: Cold Sores Assessment","All NS Residents",92099669,"with 002",20,null,"Recommended",1,{"$f":"+Service_Master_List[[#This Row],['# of Blocks Per Appt]]*$I$2","v":15},"Confirm condition is one of the minor ailments.","Indicate which condition will be assessed.","Prepare/Print assessment forms.","Usual assessment of minor ailment (use form), OLD CARTS (onset, location, duration, characteristic, allev/aggrav (including previous tx), radiating/relieving, timing, severity), Review medical background,","Bill service to MSI, Fax Rx to patient pharmacy if applicanble) Notification if applicable, Scan documentation (if applicable)"]
["Funded","Prescribing","Prescribing for a Minor Ailment: Impetigo Assessment","All NS Residents",92099668,"with 002",20,null,"Recommended",1,{"$f":"+Service_Master_List[[#This Row],['# of Blocks Per Appt]]*$I$2","v":15},"Confirm condition is one of the minor ailments.","Indicate which condition will be assessed.","Prepare/Print assessment forms.","Usual assessment of minor ailment (use form), OLD CARTS (onset, location, duration, characteristic, allev/aggrav (including previous tx), radiating/relieving, timing, severity), Review medical background,","Bill service to MSI, Fax Rx to patient pharmacy if applicanble) Notification if applicable, Scan documentation (if applicable)"]
["Funded","Prescribing","Prescribing for a Minor Ailment: Non-infectious Diarrhea Assessment","All NS Residents",92099666,"with 002",20,null,"Recommended",1,{"$f":"+Service_Master_List[[#This Row],['# of Blocks Per Appt]]*$I$2","v":15},"Confirm condition is one of the minor ailments.","Indicate which condition will be assessed.","Prepare/Print assessment forms.","Usual assessment of minor ailment (use form), OLD CARTS (onset, location, duration, characteristic, allev/aggrav (including previous tx), radiating/relieving, timing, severity), Review medical background,","Bill service to MSI, Fax Rx to patient pharmacy if applicanble) Notification if applicable, Scan documentation (if applicable)"]
["Funded","Prescribing","Assessment, Point of Care Testing For Group A Strep that results in a prescription (POCT was completed)","All NS Residents",92099722,"with 002",35,null,"Recommended",1,{"$f":"+Service_Master_List[[#This Row],['# of Blocks Per Appt]]*$I$2","v":15},"age 3+, sore throat assessment includes a review of patient symptoms and physical exam of throat/tonsils, and palpating the lymphnodes.  POCT was deemed appropriate and conducted",null,"Prepare/Print assessment forms.",null,"Bill service to MSI, Fax Rx to patient pharmacy if applicanble) Notification if applicable, Scan documentation (if applicable)"]
["Funded","Prescribing","Assessment Group A Strep that does not result in a test or a prescription (POCT was completed but was negative)","All NS Residents",92099696,"with 002",35,null,"Recommended",1,{"$f":"+Service_Master_List[[#This Row],['# of Blocks Per Appt]]*$I$2","v":15},"age 3+, sore throat assessment includes a review of patient symptoms and physical exam of throat/tonsils, and palpating the lymphnodes.  POCT was deemed appropriate and conducted",null,"Prepare/Print assessment forms.",null,"Bill service to MSI, Fax Rx to patient pharmacy if applicanble) Notification if applicable, Scan documentation (if applicable)"]
["Funded","Prescribing","Assessment of Group A Strep that did no result in a test nor a prescription","All NS Residents",92099693,"with 002",20,null,null,1,{"$f":"+Service_Master_List[[#This Row],['# of Blocks Per Appt]]*$I$2","v":15},"age 3+, sore throat assessment includes a review of patient symptoms and physical exam of throat/tonsils, and palpating the lymphnodes. POCT was not deemed appropriate"]
["Funded","Testing","Point of Care Test- strep throat cartridge (cost of the cartridge used for testing)","All NS Residents",92099622,null,"28.33+ 10% markup + PIN for assessment",null,null,1,{"$f":"+Service_Master_List[[#This Row],['# of Blocks Per Appt]]*$I$2","v":15}]
["Funded","Testing","Point of Care Test A1C","All Residents as part of CDM Plan (not walk-in)",92099724,"with 003",15,"Includes time to test, document and communicate results, does not include cost of test cartridges and supplies.","No",1,{"$f":"+Service_Master_List[[#This Row],['# of Blocks Per Appt]]*$I$2","v":15},"Not available for public access.  Patient must be part of a chronic disease management program and the test must be recommended by the pharmacist.  Most often will be billed in conjunction with another consultation service (e.g. Renewal, Disease Management)","Confirm with pharmacist if the booking for consultation service should be extended for testing (e.g. Extra block on Renewal or Disease Management)","Test supplies.","Usual process as per manufacture guidelines.","Bill the service to MSI along with consultation service if applicable.  Scan documentation.  Fax notification if necessary."]
["Funded","Testing","Point of Care Test Cholesterol","All Residents as part of CDM Plan (not walk-in)",92099723,"with 003",15,"Includes time to test, document and communicate results, does not include cost of test cartridges and supplies.","No",1,{"$f":"+Service_Master_List[[#This Row],['# of Blocks Per Appt]]*$I$2","v":15},"Not available for public access.  Patient must be part of a chronic disease management program and the test must be recommended by the pharmacist.  Most often will be billed in conjunction with another consultation service (e.g. Renewal, Disease Management)","Confirm with pharmacist if the booking for consultation service should be extended for testing (e.g. Extra block on Renewal or Disease Management)","Test supplies.","Usual process as per manufacture guidelines.","Bill the service to MSI along with consultation service if applicable.  Scan documentation.  Fax notification if necessary."]
["Funded","Prescribing","ENT- assessment, primary complaint ear - prescription provided for otitis media","All NS Residents",92099617,"with 002",20,null,null,1,{"$f":"+Service_Master_List[[#This Row],['# of Blocks Per Appt]]*$I$2","v":15},"age 3+, ear assessment including a review of patient symptoms, and ear exam "]
["Funded","Prescribing","ENT assessment, primary complaint ear - prescription provided for otitis externa","All NS Residents",92099616,"with 002",20,null,null,1,{"$f":"+Service_Master_List[[#This Row],['# of Blocks Per Appt]]*$I$2","v":15},"age 3+, ear assessment including a review of patient symptoms, and ear exam "]
["Funded","Prescribing","ENT assessment, primary complaint ear - no prescription provided","All NS Residents",92099615,"with 002",20,null,null,1,{"$f":"+Service_Master_List[[#This Row],['# of Blocks Per Appt]]*$I$2","v":15},"age 3+, ear assessment including a review of patient symptoms, and ear exam "]
["Funded","Prescribing","ENT assessment, primary compliant sinusitis - prescription provided","All NS Residents",92099614,"with 002",20,null,null,1,{"$f":"+Service_Master_List[[#This Row],['# of Blocks Per Appt]]*$I$2","v":15},"age 3+, assessment includes a review of patients sinus symptoms"]
["Funded","Prescribing","ENT assessment, primary compliant sinusitis - No prescription provided","All NS Residents",92099613,"with 002",20,null,null,1,{"$f":"+Service_Master_List[[#This Row],['# of Blocks Per Appt]]*$I$2","v":15},"age 3+, assessment includes a review of patients sinus symptoms"]
["Funded","Prescribing","Prescribing antibiotic prophylaxis to prevent Invasive Group A Strep (IGAS)","All Patients",92099648,"with 002",20,null,null,1,{"$f":"+Service_Master_List[[#This Row],['# of Blocks Per Appt]]*$I$2","v":15},"Referred from Public Health"]
["Funded","Prescribing","Prescribing antibiotic prophylaxis to prevent Invasive Meningococcal Disease (IMD) infection","All Patients",92099647,"with 002",20,null,null,1,{"$f":"+Service_Master_List[[#This Row],['# of Blocks Per Appt]]*$I$2","v":15},"Referred from Public Health"]
["Funded","Prescribing","Prescribing antibiotic prophylaxis to prevent Pertussis","All Patients",92099646,"with 002",20,null,null,1,{"$f":"+Service_Master_List[[#This Row],['# of Blocks Per Appt]]*$I$2","v":15},"Referred from Public Health"]
["Not Funded Eligible","Prescribing","CPPCC Hypertension Diagnosis and Prescribing Appointment","All NS Residents",92099624,"with 002",60,null,null,2,{"$f":"+Service_Master_List[[#This Row],['# of Blocks Per Appt]]*$I$2","v":30}]
["Not Funded Eligible","Prescribing","CPPCC Hypertension Diagnosis Appointment","All NS Residents",92099612,"with 002",20,null,null,1,{"$f":"+Service_Master_List[[#This Row],['# of Blocks Per Appt]]*$I$2","v":15}]
["Not Funded Eligible","Prescribing","CPPCC Diabetes Diagnosis and Prescribing Appointment","All NS Residents",92099623,"with 002",60,null,null,2,{"$f":"+Service_Master_List[[#This Row],['# of Blocks Per Appt]]*$I$2","v":30}]
["Not Funded Eligible","Prescribing","CPPCC Diabetes Diagnosis Appointment","All NS Residents",92099611,"with 002",20,null,null,1,{"$f":"+Service_Master_List[[#This Row],['# of Blocks Per Appt]]*$I$2","v":15}]
["Not Funded Not Eligible","Drug Administration","Administration of non-publicly funded vaccines (e.g. Twinrix®)","All patients",92099709,"with 002",20,null,"No",0.5,{"$f":"+Service_Master_List[[#This Row],['# of Blocks Per Appt]]*$I$2","v":7.5},"Determine if the vaccine requires a prescription and if the patient has filled a prescription or needs to book an appointment (virtual preferred) with the pharmacist to prescribe the vaccine?  Remind the patient that they must present the receipt from the pharmacy as proof of payment for vaccine administration when checking in.","Indicate which vaccine is being administered and if the vaccine is in the clinic fridge or of the patient is bringing it with them.","Standard injection supplies (kit).  Print off vaccine administration form and have the patient fill it out when they arrive (clipboard/pen on hand).","Standard injection process.  If a subsequent doses are necessary invite patient to book an appointment before they leave.","Service already paid by patient at dispensary.  Bill to MSI for tracking only.  Upload vaccine administration data to DIS.  Scan documentation.  Book subsequent doses if possible.","Dispose of supplies."]
["Not Funded Not Eligible","Other","Comprehensive Travel Health Consultation","All patients",92099711,"with 003","Fee Set by Site",null,"No",2,{"$f":"+Service_Master_List[[#This Row],['# of Blocks Per Appt]]*$I$2","v":30}]
["Not Funded Not Eligible","Other","Pharmacogenomic Consultation Service","All patients",92099710,"with 003","Fee Set by Site",null,"No",2,{"$f":"+Service_Master_List[[#This Row],['# of Blocks Per Appt]]*$I$2","v":30}]
["Not Funded Not Eligible","Other","Malaria Chemoprophylaxis Assessment and Prescribing","All patients",92099708,"with 002","Fee Set by Site",null,"No",2,{"$f":"+Service_Master_List[[#This Row],['# of Blocks Per Appt]]*$I$2","v":30}]
["Not Funded Not Eligible","Other","Any Service for a Patient without an NS Health card that is not covered for out of province patients","All Non-NS Residents (no NS Health Card)",92099707,"with 002","Varies by service.  Not less than fee billed to project or government.","Varies by service. Not less than the fee billed to the project or government.","Optional",1,{"$f":"+Service_Master_List[[#This Row],['# of Blocks Per Appt]]*$I$2","v":15}]
["Not Funded Not Eligible","Health Management","Medavie Blue Cross Managing Chronic Disease Benefit: Diabetes Care","Recipient",994027,null,"Fee Set by Site",null,null,4,{"$f":"+Service_Master_List[[#This Row],['# of Blocks Per Appt]]*$I$2","v":60},"Fee set by pharmacy (max yearly coverage $250-500 but varies by plan, copay may apply)"]
["Not Funded Not Eligible","Health Management","Medavie Blue Cross Managing Chronic Disease Benefit: Heart Health","Recipient",994029,null,"Fee Set by Site",null,null,4,{"$f":"+Service_Master_List[[#This Row],['# of Blocks Per Appt]]*$I$2","v":60},"Fee set by pharmacy (max yearly coverage $250-500 but varies by plan, copay may apply)"]
["Not Funded Not Eligible","Health Management","Medavie Blue Cross Managing Chronic Disease Benefit: Lung Health","Recipient",994030,null,"Fee Set by Site",null,null,4,{"$f":"+Service_Master_List[[#This Row],['# of Blocks Per Appt]]*$I$2","v":60},"Fee set by pharmacy (max yearly coverage $250-500 but varies by plan, copay may apply)"]
["Not Funded Not Eligible","Health Management","Medavie Blue Cross Managing Chronic Disease Benefit: Smoking Cessation","Recipient",994031,null,"Fee Set by Site",null,null,4,{"$f":"+Service_Master_List[[#This Row],['# of Blocks Per Appt]]*$I$2","v":60},"Fee set by pharmacy (max yearly coverage $250-500 but varies by plan, copay may apply)"]
["Not Funded Not Eligible","Other","Completion of Forms not covered by an agreement (ex: Special auth forms)","All Patients",92099641,null,"Fee Set by Site",null,null,1,{"$f":"+Service_Master_List[[#This Row],['# of Blocks Per Appt]]*$I$2","v":15},"Fee set by pharmacy (physicians charge between $5-25 for this service)"]

{"sheet":"Categories","index":2,"n_rows":18,"n_cols":7,"rows_kept":18,"cut":false,"hidden":false,"merged":[]}
[]
["Funding Categories",null,"Service Categories",null,"Recipient",null,"Same Day Appt"]
["Funded",null,"Prescribing",null,"All Patients",null,"Recommended"]
["Not Funded Eligible",null,"Testing",null,"All NS Residents",null,"Optional"]
["Not Funded Not Eligible",null,"Other",null,"All Pharmacare Patients",null,"No"]
[null,null,"Medication Review",null,"All Seniors Pharmacare Patients",null,"CanImmunize"]
[null,null,"Health Management",null,"All NS Residents w/ CVD"]
[null,null,"Drug Administration",null,"All NS Residents w/ Diabetes"]
[null,null,null,null,"All NS Residents w/ Asthma/COPD"]
[null,null,null,null,"All Non-Pharmacare Patients"]
[null,null,null,null,"Patients Enrolled In Optimize My Medication"]
[null,null,null,null,"Patients Enrolled in HTN Project"]
[null,null,null,null,"All Residents as part of CDM Plan (not walk-in)"]
[null,null,null,null,"All Non-NS Residents (no NS Health Card)"]
[null,null,null,null,"All NS Residents NOT Enrolled in Optimize My Meds"]
[null,null,null,null,"All NS Residents NOT Enrolled in HTN Project"]
[null,null,null,null,"All NS Residents Requiring T/S Other than PPI"]
[null,null,null,null,"All Pharmacare Patients (if applicable)"]

{"sheet":"Minor Ailment Criteria Codes","index":3,"n_rows":1,"n_cols":3,"rows_kept":1,"cut":false,"hidden":false,"merged":[]}
[null,null,"Minor Ailment Criteria Codes"]